{"text_format":"1","workbook":"xlsx","n_sheets":23,"sheets":["Cover Page","Contents","Facility Info","Operational Data","SEPA Addendum","Operational Summary","Perf. Form 1","Energy Form 1","Permit Compliance","Improvements","Public Liasion","CO2 N2O","Residue Quality ","Water","Air (periodic)","Air (CEMS)","HCl","SO2","NOx","TOC","Particulates","CO 95% 10 min","NH3"],"not_rendered":{"charts":7,"images":3,"macros":1,"external_links":0,"defined_names":22,"comments":0,"pivot_tables":0},"unopened":[],"bounds":{"document_bytes":16777216,"sheet_cells":100000,"rows_first":2000,"rows_last":500,"rows_between":2000,"halvings":0,"cell_chars":16384,"cell_head_chars":4096},"cells_cut":0,"cells_raw":0,"read":"whole","date_system":"1900"}

{"sheet":"Cover Page","index":0,"n_rows":53,"n_cols":7,"rows_kept":53,"cut":false,"hidden":false,"merged":[[48,2,48,3],[48,6,48,8],[52,2,52,3],[36,1,36,8],[40,2,40,8],[42,2,42,4],[44,2,44,4],[46,2,46,3],[46,6,46,8],[13,13,18,15],[0,3,5,6],[28,1,28,8],[30,1,30,8],[32,1,32,8]]}
[null,null,null,"Add company logo"]
[]
[]
[]
[]
[]
[]
[]
[]
[]
[]
[]
[]
[]
[]
[]
[]
[]
[]
[]
[]
[]
[]
[]
[]
[]
[]
[]
[null,"Annual Performance Report 2023"]
[]
[null,"Permit PPC/A/1032878"]
[]
[null,"Dunbar Energy Recovery Facility (ERF)"]
[]
[]
[]
[null,"Viridor Dunbar Waste Services Ltd "]
[]
[null,"Year:",2023]
[]
[null,"Address:","Dunbar ERF, Oxwell Mains, Dunbar, East Lothian, EH421SW"]
[]
[null,"Tel: ","REDACTED"]
[]
[null,"Email: ","REDACTED"]
[]
[null,"Prepared by:","REDACTED",null,null,"Position:","REDACTED"]
[]
[null,"Approved by:","REDACTED",null,null,"Position:","REDACTED"]
[]
[null,"Version:","V 1.0"]
[]
[null,"Issue Date:","31/01/2024"]

{"sheet":"Contents","index":1,"n_rows":46,"n_cols":11,"rows_kept":46,"cut":false,"hidden":false,"merged":[[37,1,37,6],[23,1,23,6],[24,1,24,6],[25,1,25,6],[28,1,28,6],[29,1,29,6],[30,1,30,6],[31,1,31,6],[32,1,32,6],[33,1,33,6],[36,1,36,6],[45,0,48,9],[38,1,38,6],[39,1,39,6],[40,1,40,6],[41,1,41,6],[42,1,42,6],[43,1,43,6],[22,1,22,6],[10,1,10,6],[11,1,11,6],[12,1,12,6],[14,1,14,6],[15,1,15,6],[16,1,16,6],[17,1,17,6],[18,1,18,6],[19,1,19,6],[20,1,20,6],[21,1,21,6],[13,1,13,6],[4,10,8,14],[9,1,9,6],[3,1,3,6],[4,1,4,6],[5,1,5,6],[8,1,8,6],[6,1,6,6],[7,1,7,6]]}
[{"$f":"+'Cover Page'!$B$29","v":"Annual Performance Report 2023"},null,null,null,{"$f":"+'Cover Page'!$B$33","v":"Dunbar Energy Recovery Facility (ERF)"}]
[]
["Contents",null,null,null,null,null,null,null,null,null,"Notes:"]
["Section","Subject",null,null,null,null,null,"Page ",null,null,"Section references and Page nos. to be inserted"]
[null,"Facility Information",null,null,null,null,null,3,null,null,"Sections and Subjects may require adjustment by individual operators to meet specific reporting requirements as defined in the sites Permit(s)"]
[null,"Operational Data",null,null,null,null,null,4]
[null,"SEPA Addendum",null,null,null,null,null,5]
[null,"Operational Summary",null,null,null,null,null,6]
[null,"Performance Form 1",null,null,null,null,null,7]
[null,"Energy Form 1",null,null,null,null,null,8]
[null,"Permit Compliance",null,null,null,null,null,9]
[null,"Improvements",null,null,null,null,null,10]
[null,"Public Liasion",null,null,null,null,null,11]
[null,"Carbon dioxide and nitrous oxide emissions",null,null,null,null,null,12]
[null,"Residue Quality ",null,null,null,null,null,13]
[null,"Emissions to Water",null,null,null,null,null,14]
[null,"Emissions to Air (periodically monitored)",null,null,null,null,null,15]
[null,"Emissions to Air (continuously monitored)",null,null,null,null,null,16]
[null,"Hydrogen Chloride emissions",null,null,null,null,null,17]
[null,"Sulphur Dioxdie emsissions",null,null,null,null,null,18]
[null,"Oxides of Notrigen emissions",null,null,null,null,null,19]
[null,"Total Organic Carbon emissions",null,null,null,null,null,20]
[null,"Particulate Matter emissions",null,null,null,null,null,21]
[null,"Carbon Monoxide emissions",null,null,null,null,null,22]
[null,"Ammonia emissions",null,null,null,null,null,23]
[]
[]
["Version Control"]
["Section","Information",null,null,null,null,null,"Date"]
[]
[]
[]
[]
[]
[]
["Distribution"]
["Copy","Name, Role",null,null,null,null,null,"No."]
[]
[]
[]
[]
[]
[]
[]
[]
["This report is required under the Industrial Emissions Directive’s Article 55(2) requirements on reporting and public information on waste incineration plants and co-incineration plants, which require the operator to produce an annual report on the functioning and monitoring of the plant and make it available to the public. "]

{"sheet":"Facility Info","index":2,"n_rows":22,"n_cols":11,"rows_kept":22,"cut":false,"hidden":false,"merged":[[4,0,17,8],[21,0,53,8],[4,10,13,13],[21,10,30,13]]}
[{"$f":"+'Cover Page'!$B$29","v":"Annual Performance Report 2023"},null,null,null,{"$f":"+'Cover Page'!$B$33","v":"Dunbar Energy Recovery Facility (ERF)"}]
[]
["Plant Description and Design",null,null,null,null,null,null,null,null,null,"Notes:"]
[]
["Dunbar ERF is constructed at Viridor's existing waste treatment hub in East Lothian and is designed to divert 325kt of waste per year from landfill and contribute to Scottish energy security. Dunbar is a duel-line moving grate fired energy from waste facility and is now permitted to treat 390kt of waste per calendar year following the approval in 2023 of a variation request to uplift the capacity of the facility. The thermal capacity of the plant is 112 MWth with an electrical capacity of 37MW connected to the 33kV distribution network of Scottish Power Energy Network (SPEN). The plant has the capacity to power over 70,000 homes in East Lothian per annum. ",null,null,null,null,null,null,null,null,null,"Include summary of plant design, design capacity, no. of combustion lines, electrical and heat capacity and any other general information that describes the facility, its location and purpose "]
[]
[]
[]
[]
[]
[]
[]
[]
[]
[]
[]
[]
[]
[]
["Summary of Operational Processes and Procedures"]
[]
[" The plant consists of the following units: A waste reception hall comprising common waste reception, inspection and storage area with eight reception bays, one waste storage bunker, two overhead grab cranes and a rejected waste quarantine area with an enclosed process building fitted with automatic, fast acting doors. Two continuous multi-stage air-cooled moving grate incinerators with water-cooled wear zone comprising primary and secondary combustion zones each capable of burning 190,000 tonnes per line per annum. Each incinerator is fed from a waste feeding chute and compromises a hydraulically driven feed grate, air-cooled combustion grate with water-cooled wear zone. Primary air is fed via the underside of the grates and secondary air above the grates via a distribution system. There are hoppers to collect the bottom ash and two gas-oil fire auxiliary burners per line. \n\nTwo heat recovery lines feed in to one common electricity generation system. Each heat recovery line comprises of a waste heat recovery boiler integrate with the incinerator furnace and fitted with three vertical radiant passes and a fourth horizontal convective section including a superheater, evaporator and economiser bundles. The waste heat boiler produces superheated steam which is passed to a condensing steam turbine and generator (one common unit) capable of generating a total of 37 MW and exporting either 34 MW of electricity without heat export or 28.5MW and up to 17MW of heat as low pressure steam or hot water. Boiler waste treatment compromises of demineralisation and chemical dosing. \n\nTwo flue gas cleaning and conditioning lines are located within the main boiler building. Each line compromises ammonia Selective Non-Catalytic Reduction (SNCR) system injected in to the first pass for control of NOx emissions, activated carbon injection at the inlet of the bag filter for control of dioxins/fans and heavy metals, dry lime injection are the inlet of the bag filter for abatement of acid gases and fabric bag filtration plant for removal of particulate matter including spent flue gas residues. Each line discharges via a separate flue to a common external stack.\n\nThe site has appropriate storage and handling of raw materials including storage of activated carbon and lime in silos and ammonia solution and gas oil in external bulk storage tanks. Ash residues treatment and storage compromising hoppers, screw conveyors, bottom ash quench system and storage areas for fly ash (consisting of dust from boiler passes and residues from flue gas treatment) and bottom ash. Blow down from the boiler is collected in a process water tank to re-use as required. \n\nCEMS system is installed for monitoring of emissions. Analysers are provided and maintained by SICK (UK) Ltd and an Envirosoft data handling system.\n\nDunbar ERF is part of the Viridor management system which is a suite of documentation that both the site and the business are governed by. This includes policies and procedures, ERF Management Instructions (EMI), Local Management Instructions (LMI) and safe operating procedures and risk assessments which cover all activities that are carried out on the site. EMIs and LMIs in particular cover the site's operational, maintenance, environmental and health and safety responsibilities. Maintenance of the plant is managed via the Computerised Maintenance Management System (CMMS).",null,null,null,null,null,null,null,null,null,"Include summary of key processes and procedures such as (but not limited to); waste reception, control rooms, grate, bed and boiler, energy & heat  generation, cooling systems, residue management, emission controls, plant monitoring, health and safety systems, maintenance"]

{"sheet":"Operational Data","index":3,"n_rows":57,"n_cols":10,"rows_kept":57,"cut":false,"hidden":false,"merged":[[5,9,7,9],[49,0,50,0],[32,1,34,1],[3,1,3,2],[7,1,18,1],[22,1,25,1],[27,1,28,1],[9,9,19,9],[20,9,24,9]]}
[{"$f":"+'Cover Page'!$B$29","v":"Annual Performance Report 2023"},null,null,null,{"$f":"+'Cover Page'!$B$33","v":"Dunbar Energy Recovery Facility (ERF)"}]
[]
["Operational Data"]
["Plant Size",390000,null,"tonnes pa",112.14,"MWth",33,"MWe",null,"Notes:"]
["No. of combustion lines",2,null,"No. of Turbines:",null,1,null,null,null,"* - RDF to include SRF "]
[null,null,null,null,null,null,null,null,null,"** - Combusted tonnage = tonnes delivered in period + (tonnes in bunker at start of period – tonnes in bunker at end of period), or equivalent calculation depending on plant type"]
["Waste types received","Unit","Q1","Q2","Q3","Q4","Year Total","%"]
["Household / Local Authority","tonnes",28442.76,33549,34842,31506,{"$f":"SUM(C8:F8)","v":128339.76},{"$f":"IF(G8>0,G8/$G$17,\"-\")","v":0.35442584369608798}]
["Commercial & Industrial ",null,18957.84,16591,19022,19613,{"$f":"SUM(C9:F9)","v":74183.839999999997},0.20486768933193891,null,"*** - CHP plants only"]
["Hazardous ",null,0,0,0,0,0,"-",null,"**** Availability Definition: 'the availability of a line is to be calculated by the number of hours the line reported Continuously Monitored emission levels to the Regulator through the calendar year divided by the total number of hours in that year. \n\nThe overall plant availability is calculated as the Mean of all lines in the plant. For clarity this includes periods of abnormal operation.'  \n\nRationale: The primary function of an Energy from Waste facility is the disposal of waste. It follows therefore that the availability of a plant is determined by the period of time a facility spends undertaking this activity."]
["Clinical",null,706,568,670,842,2786,7.6938775679282955E-3]
["Waste wood (biomass) ",null,0,0,0,0,0,"-"]
["Refuse Derived Fuel * - H'hold/LA",null,36247.279999999999,38804,37663,37090,{"$f":"SUM(C13:F13)","v":149804.28},0.4137027241463207]
["Refuse Derived Fuel *  - C&I",null,21.22,89,144,123,377.22,1.0417388715627824E-3]
["Transfer Station Organics ",null,365,0,650,1051,2066,5.7055100701148094E-3]
["Digestate Anaerobic Treatment ",null,589,1501,1292,1167,4549,1.2562616316046596E-2]
["Total waste received",null,{"$f":"SUM(C8:C16)","v":85329.1},{"$f":"SUM(D8:D16)","v":91102},{"$f":"SUM(E8:E16)","v":94283},{"$f":"SUM(F8:F16)","v":91392},362106.1]
["Rejected Waste ",null,0,0,0,0,{"$f":"SUM(C18:F18)","v":0},{"$f":"IF(G18>0,G18/$G$17,\"-\")","v":"-"}]
["Unprocessed waste transferred out",null,0,0,0,0,{"$f":"SUM(C19:F19)","v":0},{"$f":"IF(G19>0,G19/$G$17,\"-\")","v":"-"}]
["Total waste combusted **",null,84225,89202,93461,89078,{"$f":"SUM(C20:F20)","v":355966}]
[null,null,null,null,null,null,null,null,null,"Password for protected cells\nA password has been set to prevent accidental  editing of cells with formulae. \nIf you still need to make an edit for some reason then the password = 1234"]
["Energy Usage / Export","Unit","Q1","Q2","Q3","Q4","Year Total","KWh/te"]
["Power Generated","MWh",71169,74841,77870,72102,{"$f":"SUM(C23:F23)","v":295982},{"$f":"IF(G23>0,G23*1000/$G$20,\"-\")","v":831.48952428040877}]
["Power Exported",null,65267,68985,71725,66185,{"$f":"SUM(C24:F24)","v":272162},{"$f":"IF(G24>0,G24*1000/$G$20,\"-\")","v":764.57302101886137}]
["Power Used on site",null,5902,{"$f":"D23-D24","v":5856},{"$f":"E23-E24","v":6145},{"$f":"F23-F24","v":5917},{"$f":"SUM(C25:F25)","v":23820},{"$f":"IF(G25>0,G25*1000/$G$20,\"-\")","v":66.916503261547447}]
["Power Imported",null,0,null,null,null,{"$f":"SUM(C26:F26)","v":0},{"$f":"IF(G26>0,G26*1000/$G$20,\"-\")","v":"-"}]
["Parasitic Load","%",{"$f":"IF(C23>0,1-C24/(C23+C26),\"-\")","v":8.2929365313549441E-2},{"$f":"IF(D23>0,1-D24/(D23+D26),\"-\")","v":7.8245881268288797E-2},{"$f":"IF(E23>0,1-E24/(E23+E26),\"-\")","v":7.8913573905226686E-2},{"$f":"IF(F23>0,1-F24/(F23+F26),\"-\")","v":8.2064297800338415E-2},{"$f":"IF(G23>0,1-G24/(G23+G26),\"-\")","v":8.047786689731129E-2}]
["Thermal Energy Produced ***","MWh",0,0,0,0,{"$f":"SUM(C28:F28)","v":0},{"$f":"IF(G28>0,G28*1000/$G$20,\"-\")","v":"-"}]
["Thermal Energy Exported ***",null,0,0,0,0,{"$f":"SUM(C29:F29)","v":0},{"$f":"IF(G29>0,G29*1000/$G$20,\"-\")","v":"-"}]
["R1 value (if applicable)","R1",null,null,null,null,0.83]
[]
["Waste Disposal & Recovery","Unit","Q1","Q2","Q3","Q4","Year Total","% inputs"]
["APC Residues - produced","tonnes",1910,2191,2213,2069,{"$f":"SUM(C33:F33)","v":8383},{"$f":"IF(G33>0,G33/$G$20,\"-\")","v":2.3550001966479946E-2}]
["IBA - produced",null,15906,18528,18146,16492,{"$f":"SUM(C34:F34)","v":69072},{"$f":"IF(G34>0,G34/$G$20,\"-\")","v":0.19404100391610435}]
["Metals recycling",null,978,1070,1166,1001,{"$f":"SUM(C35:F35)","v":4215},{"$f":"IF(G35>0,G35/$G$20,\"-\")","v":1.1841018524241079E-2}]
["Proces Water - removed",null,2502,1911,1198,1207,{"$f":"SUM(C36:F36)","v":6818},{"$f":"IF(G36>0,G36/$G$20,\"-\")","v":1.9153514661512615E-2}]
[]
["Raw Material Usage","Unit","Q1","Q2","Q3","Q4","Year Total","kg or Ltr /te"]
["Mains Water","ltrs",5625000,5983250,5828820,6383880,{"$f":"SUM(C39:F39)","v":23820950},{"$f":"IF(G39>0,G39/$G$20,\"-\")","v":66.919172055758139}]
["Harvested Rain Water","ltrs",71000,71000,71000,71000,284000,{"$f":"IF(G40>0,G40/$G$20,\"-\")","v":0.79782900614103591}]
["Ammonia","kgs",66698.13,55931.362000000001,80006.31,80356.570000000007,282992.37199999997,0.79499832006427573]
["Urea","kgs",null,0,0,0,{"$f":"SUM(C42:F42)","v":0},"-"]
["Activated Carbon","kgs",23871.97,22265.32,20639.241999999998,20639.241999999998,87415.774000000005,0.24557338060376555]
["Lime / hydrated lime","kgs",1133762.7,1133270.6000000001,981027.4,981027.4,4229088.0999999996,11.880595618682682]
["Furnace Flame Fuel","ltrs",109979,81961.277999999991,46941.42500000001,118638.598,357520.30099999998,1.0043664310636409]
["Gas","cuf",0,0,0,0,0]
["Other",null,null,null,null,null,0]
[]
["Summary ","Line/Unit","Q1","Q2","Q3","Q4","Year Total",null,"Hrs in year "]
["Availability of waste combustion by line, hrs ****",1,1978,2137,2164,2081,{"$f":"SUM(C50:F50)","v":8360},{"$f":"+G50/$I$50","v":0.954337899543379},8760]
[null,2,2190,2166,2190,2010,8556,{"$f":"+G51/$I$50","v":0.97671232876712333}]
["Overall Availability, mean avg. of all lines, hrs",null,null,null,null,null,{"$f":"AVERAGE(G50:G51)","v":8458},{"$f":"+G52/$I$50","v":0.96552511415525111}]
["Hours of turbine operations, hrs",1,2190,2190,2186,2190,8756,{"$f":"+G53/$I$50","v":0.99954337899543377}]
["Hours of heat / steam export",null,null,null,null,null,0,{"$f":"IF(B54>0,#REF!/I50,\"n/a\")","v":"n/a"}]
["Net Calorific Value of waste","MJ/kg",9.9600000000000009,9.9700000000000006,9.92,9.61,{"$f":"AVERAGE(C55:F55)","v":9.8650000000000002}]
["Abnormal Events","qty.",null,null,null,3,3,{"$f":"IF(G56>0,\"yes\",\"no\")","v":"yes"}]
["Abnormal operation","hours",null,null,null,1.5,1.5,{"$f":"+(G57)/I50","v":1.7123287671232877E-4}]

{"sheet":"SEPA Addendum","index":4,"n_rows":28,"n_cols":7,"rows_kept":28,"cut":false,"hidden":false,"merged":[[24,0,24,1],[26,0,26,9],[27,0,28,9],[22,0,22,1]]}
[{"$f":"+'Cover Page'!$B$29","v":"Annual Performance Report 2023"},null,null,null,{"$f":"+'Cover Page'!$B$33","v":"Dunbar Energy Recovery Facility (ERF)"}]
[]
["Additional Operational Data for SEPA"]
[]
["a) Report required under Condition 5.2.4 - Non-utilisation of Heat Recovery System"]
["Start of period",null,"End of period",null,"Duration","Brief details of cause of period of non-utilisation and how"]
["Date","Time","Date","Time","hours: minutes (XX:XX)","this was resolved "]
["2023-09-06","00:01:00","2023-09-06","23:59:00","10:12:00","Recovery from electrical issues following a grid disturbance - trips reset no further issues."]
["25/7/2023","00:01:00","25/7/2023","23:59:00","01:15:00","High level trip in MP Hotwell - trip reset no further issues"]
["2023-06-09","00:01:00","2023-06-09","23:59:00","03:30:00","Defective boiler drum level switch - switch repaired no further issues"]
["22/9/2023","00:01:00","22/9/2023","23:59:00",0.45,"Spurious trip on boiler drum - trip reset no further action required"]
["20/10/2023","00:01:00","20/10/2023","23:59:00","00:30:00","Turbine trip due to steam flow issues when shutting down Line 1 - turbine reset and restarted."]
[]
[]
[]
[]
[]
[null,null,null,"TOTAL"]
[]
["b) Additional Energy Data for calendar year"]
[]
["The plant met energy recovery efficiency targets as shown in the table below:",null,null,null,null,"NOTE - For plants not required to complete an Annual Heat and Power Plan"]
["Energy Recovery Efficiency Target",null,"Target","2023 Actual","2022 Actual","Operator comments","* - TTWG means SEPA Thermal Treatment of Waste Guidelines 2014"]
["TTWG*  Start Up Target",null,0.2,"%","%","N/A Heat & Power plan to be submitted"]
[null,null,"(gross CV basis)"]
[]
["Operator’s comments :"]
["N/A Heat & Power plan to be submitted"]

{"sheet":"Operational Summary","index":5,"n_rows":31,"n_cols":11,"rows_kept":31,"cut":false,"hidden":false,"merged":[[4,0,26,8],[30,0,51,8],[4,10,13,13],[30,10,39,13]]}
[{"$f":"+'Cover Page'!$B$29","v":"Annual Performance Report 2023"},null,null,null,{"$f":"+'Cover Page'!$B$33","v":"Dunbar Energy Recovery Facility (ERF)"}]
[]
["Summary of Plant Operations and Maintenance during the reporting year",null,null,null,null,null,null,null,null,null,"Notes:"]
[]
["There was no major planned outage period for the facility during 2023 and overall the plant performed well during this period.\n\nNotable periods of unplanned downtime on Line 1 included, Hydraulic pump issues that effected the availability of the Grate system, as well as two boiler tube leaks repairs. All defects were successfully rectified by the Viridor Engineering team supported by specialist contractors.\n\nNotable periods of unplanned downtime on Line 2 included, a blockage in the conditioning tower due to issues with the water injection system, as well as blockages and defects in the fly ash transportation system that required offline repairs.  All defects were successfully rectified by the Viridor Engineering team supported by specialist contractors.\n\nThe turbine and generator remained available throughout the 12 month period, however the plant export was effect on occasions due to power interruptions on the network.\n\nAll planned maintenance was completed during the 12 month period with the support of OEM and specialist contractors, Viridor maintain a robust level of routine and breakdown coverage service agreements to ensure the plant and equipment is adequately supported. An assurance inspection visit was conduct by FM Global resulting in an overall improvement in the risk index score for the site, with cyber security and operational maintenance practices highlighted as areas of improvement.\n\nPlanned Lifecycle maintenance items continue to be completed in line with the facilities Lifecycle maintenance plan, notable items completed during 2023 were the major overall or replacement of waste crane and ash crane grabs. The activated carbon transportation system was also upgraded to address potential degradation issues and the weighbridge accounting system was replaced as part of a Viridor fleetwide project.\n\nThe next major planned shutdown remains scheduled for May 2024.\n",null,null,null,null,null,null,null,null,null,"Include summary of key operational and/or maintenance activity undertaken in the year, such as any major component upgrades and/or replacements and a summary of breakdowns and unplanned shutdowns"]
[]
[]
[]
[]
[]
[]
[]
[]
[]
[]
[]
[]
[]
[]
[]
[]
[]
[]
[]
[]
[]
[]
[]
["Summary of Residue Handling for the reporting year"]
[]
["Incinerator Bottom Ash (IBA) - IBA is managed by RockSolid Processing Ltd, a Dutch IBA processing company. The reprocessing takes place in a batch process twice per year in two separate campaigns of a minimum of 30,000 tonnes each and is undertaken on a mobile basis on the permitted location in Cowdenbeath, owned and operated by Colliers. Once the IBA is produced in the bunker at Dunbar ERF, RockSolid’s appointed haulier loads and transports the material, via Viridor’s weighbridge, to the storage a and processing location in Cowdenbeath daily (Monday-Friday). At Cowdenbeath, the IBA is bulked up and managed in to windrows until the IBA is assessed as non-hazardous, based on ESA protocol testing results, before being moved to the main stockpile. Once approximately 30,000 tonnes are held in the stockpile, RockSolid and their appointed contractors begin processing the IBA over a period of approximately 35 working days. During the process, ferrous and non-ferrous metals will be recovered along with Incinerator Bottom Ash Aggregates (IBAA). This is then by used by Collier Quarrying & Recycling Ltd as aggregate material under a separate contract. Two successful processing campaigns were carried out in 2023, with significant amounts of non-ferrous metals being recovered and reprocessed.\n\nAir Pollution Control Residues (APCR) - APCR continues to be processed at Augean PLC's hazardous landfill in Port Clarence, Middlesbrough. \n\nOversized Metal - Oversized metal is taken to EMR's facility in Bellshill, near Glasgow, where it is recycled and reused in various industries. ",null,null,null,null,null,null,null,null,null,"Include in here a summary of residue handling regimes and destinations for each residue stream"]

{"sheet":"Perf. Form 1","index":6,"n_rows":54,"n_cols":12,"rows_kept":54,"cut":false,"hidden":false,"merged":[[49,11,52,14],[47,0,47,1],[49,0,49,9],[50,0,51,9],[38,0,38,9],[39,0,40,9],[43,0,43,1],[43,2,43,9],[45,0,45,1],[46,0,46,1],[36,0,36,3],[36,4,36,5],[36,7,36,8],[37,0,37,3],[37,4,37,5],[37,7,37,8],[34,0,34,3],[34,4,34,5],[34,7,34,8],[35,0,35,3],[35,4,35,5],[35,7,35,8],[31,0,31,3],[31,7,31,8],[32,0,32,3],[32,4,32,5],[32,7,32,8],[33,0,33,3],[33,4,33,5],[33,7,33,8],[23,0,23,3],[23,4,23,5],[23,6,23,7],[23,8,23,9],[25,0,25,9],[26,0,28,9],[21,0,21,1],[21,2,21,3],[21,4,21,5],[21,6,21,7],[21,8,21,9],[22,0,22,3],[22,4,22,5],[22,6,22,7],[22,8,22,9],[19,0,19,1],[19,2,19,3],[19,4,19,5],[19,6,19,7],[19,8,19,9],[20,0,20,1],[20,2,20,3],[20,4,20,5],[20,6,20,7],[20,8,20,9],[17,0,17,1],[17,2,17,3],[17,4,17,5],[17,6,17,7],[17,8,17,9],[18,0,18,1],[18,2,18,3],[18,4,18,5],[18,6,18,7],[18,8,18,9],[12,4,12,5],[12,6,12,7],[12,8,12,9],[15,0,15,1],[15,2,15,3],[15,4,15,5],[15,6,15,7],[15,8,15,9],[16,0,16,9],[13,0,13,1],[13,2,13,3],[13,4,13,5],[13,6,13,7],[13,8,13,9],[14,0,14,3],[14,4,14,5],[14,6,14,7],[14,8,14,9],[53,1,53,3],[9,0,9,9],[10,0,10,1],[10,2,10,3],[10,4,10,5],[10,6,10,7],[10,8,10,9],[2,0,2,4],[2,6,2,8],[3,1,3,4],[5,3,5,4],[5,6,5,7],[8,0,8,1],[8,2,8,3],[8,4,8,5],[8,6,8,7],[8,8,8,9],[11,0,11,1],[11,2,11,3],[11,4,11,5],[11,6,11,7],[11,8,11,9],[12,0,12,1],[12,2,12,3]]}
[{"$f":"+'Cover Page'!C39","v":2023}," Annual Reporting Performance Form 1"]
[]
[{"$f":"+'Cover Page'!B31","v":"Permit PPC/A/1032878"},null,null,null,null,"Operator: ","Viridor Dunbar Waste Services Ltd"]
["Facility:",{"$f":"+'Cover Page'!B33:I33","v":"Dunbar Energy Recovery Facility (ERF)"},null,null,null,"Form:","Performance 1"]
[]
["Reporting  Period from: ",null,null,"2023-01-01",null,"to:","31/12/2023"]
[]
[{"$f":"+A1","v":2023},"Annual Reporting of Waste Disposal and Recovery"]
["Waste Description",null,"Disposal Route(s)",null,"Disposal Tonnes",null,"Recovery Tonnes",null,"% / tonne of waste incinerated"]
["1) Hazardous Wastes"]
["APC Residues",null,"Hazardous Landfill",null,{"$f":"'Operational Data'!G33","v":8383},null,0,null,{"$f":"IF((E11+G11)>0,(E11+G11)/'Operational Data'!$G$20, \"-\")","v":2.3550001966479946E-2}]
["IBA",null,null,null,0,null,0,null,{"$f":"IF((E12+G12)>0,(E12+G12)/'Operational Data'!$G$20, \"-\")","v":"-"}]
[null,null,null,null,null,null,null,null,{"$f":"IF((E13+G13)>0,(E13+G13)/'Operational Data'!$G$20, \"-\")","v":"-"}]
[null,null,null,null,null,null,null,null,{"$f":"IF((E14+G14)>0,(E14+G14)/'Operational Data'!$G$20, \"-\")","v":"-"}]
["Total Hazardous Waste",null,null,null,{"$f":"SUM(E11:F14)","v":8383},null,{"$f":"SUM(G11:H14)","v":0},null,{"$f":"IF((E15+G15)>0,(E15+G15)/'Operational Data'!$G$20, \"-\")","v":2.3550001966479946E-2}]
[]
["2) Non-Hazardous Wastes"]
["IBA",null,"Reprocessing",null,{"$f":"'Operational Data'!G34","v":69072},null,null,null,{"$f":"IF((E18+G18)>0,(E18+G18)/'Operational Data'!$G$20, \"-\")","v":0.19404100391610435}]
["Ferrous Metal",null,"Recycling",null,{"$f":"'Operational Data'!G35","v":4215},null,null,null,{"$f":"IF((E19+G19)>0,(E19+G19)/'Operational Data'!$G$20, \"-\")","v":1.1841018524241079E-2}]
["Process Water",null,"Disposal ",null,6817.72,null,null,null,{"$f":"IF((E20+G20)>0,(E20+G20)/'Operational Data'!$G$20, \"-\")","v":1.9152728069534733E-2}]
[null,null,null,null,null,null,null,null,{"$f":"IF((E21+G21)>0,(E21+G21)/'Operational Data'!$G$20, \"-\")","v":"-"}]
[null,null,null,null,null,null,null,null,{"$f":"IF((E22+G22)>0,(E22+G22)/'Operational Data'!$G$20, \"-\")","v":"-"}]
["Total Non-Hazardous Waste",null,null,null,{"$f":"SUM(E18:F22)","v":80104.72},null,{"$f":"SUM(G18:H22)","v":0},null,{"$f":"IF((E23+G23)>0,(E23+G23)/'Operational Data'!$G$20, \"-\")","v":0.22503475050988017}]
["TOTAL WASTE",null,null,null,{"$f":"+E23+E15","v":88487.72},null,{"$f":"+G23+G15","v":0},null,{"$f":"IF((E24+G24)>0,(E24+G24)/'Operational Data'!$G$20, \"-\")","v":0.24858475247636011}]
[]
["Operator’s comments :"]
[]
[]
[]
[]
[{"$f":"+A1","v":2023},"Annual Reporting of Water and Other Raw Material Usage"]
["Raw Material",null,null,null,"Usage",null,"Unit","Specific Usage",null,"Unit"]
["Mains Water",null,null,null,{"$f":"+'Operational Data'!G39","v":23820950},null,"m3",{"$f":"IF(E33>0,E33/'Operational Data'!$G$20,\"-\")","v":66.919172055758139},null,"m3/te"]
["Total Water",null,null,null,{"$f":"+'Operational Data'!G40+'Operational Data'!G39","v":24104950},null,"m3",{"$f":"IF(E34>0,E34/'Operational Data'!$G$20,\"-\")","v":67.717001061899168},null,"m3/te"]
["Ammonia",null,null,null,{"$f":"'Operational Data'!G41","v":282992.37199999997},null,"kg",{"$f":"IF(E35>0,E35/'Operational Data'!$G$20,\"-\")","v":0.79499832006427573},null,"kg/te"]
["Activated Carbon",null,null,null,{"$f":"+'Operational Data'!G43","v":87415.774000000005},null,"kg",{"$f":"IF(E36>0,E36/'Operational Data'!$G$20,\"-\")","v":0.24557338060376555},null,"kg/te"]
["Hydrated lime",null,null,null,{"$f":"+'Operational Data'!G44","v":4229088.0999999996},null,"kg",{"$f":"IF(E37>0,E37/'Operational Data'!$G$20,\"-\")","v":11.880595618682682},null,"kg/te"]
[]
["Operator’s comments :"]
["Optimisation of raw material usage is an on-going project at Dunbar ERF. Improvements to the reject water system have resulted in an overall reduction of mains water usage."]
[]
[]
[{"$f":"+A31","v":2023},"Annual Reporting of other performance indicators "]
["Parameter",null,"Results by Line"]
[null,null,"A1","A2",null,null,null,null,"Turbine 1"]
["Operating hours for the year, hours",null,{"$f":"'Operational Data'!G50","v":8360},{"$f":"'Operational Data'!G51","v":8556},null,null,null,null,{"$f":"'Operational Data'!G53","v":8756}]
["Number of periods of abnormal operation, qty.",null,0,3,null,null,null,null,0]
["Cumulative hours of abnormal operation for this year, hours",null,0,1.5,null,null,null,null,0]
[]
["Operator’s comments :",null,null,null,null,null,null,null,null,null,null,"Where there has been any exceedance of the 60 hour AO limit provide the notification date and a summary of the cause and actions in this box."]
["Periods of Abnormal operation detailed in permit compliance section of the report."]
[]
[]
["Signed: ","REDACTED",null,null,null,null,"Date:","31/01/2024",null,null,null," "]

{"sheet":"Energy Form 1","index":7,"n_rows":29,"n_cols":8,"rows_kept":29,"cut":false,"hidden":false,"merged":[[28,1,28,3],[15,0,15,2],[15,3,15,4],[15,6,15,8],[17,0,17,8],[18,0,24,8],[13,0,13,2],[13,3,13,4],[13,6,13,8],[14,0,14,2],[14,3,14,4],[14,6,14,8],[11,0,11,2],[11,3,11,4],[11,6,11,8],[12,0,12,2],[12,3,12,4],[12,6,12,8],[9,0,9,2],[9,3,9,4],[9,6,9,8],[10,0,10,2],[10,3,10,4],[10,6,10,8],[2,6,2,8],[4,1,4,4],[6,3,6,4],[6,6,6,7],[8,0,8,2],[8,3,8,4],[8,6,8,8]]}
[{"$f":"+'Cover Page'!C39","v":2023}," Annual Reporting of Energy Usage/Export"]
[]
[{"$f":"+'Cover Page'!B31","v":"Permit PPC/A/1032878"},null,null,null,null,"Operator: ","Viridor Dunbar Waste Services Ltd"]
[]
["Facility:",{"$f":"+'Cover Page'!B33:I33","v":"Dunbar Energy Recovery Facility (ERF)"},null,null,null,"Form:","Energy 1"]
[]
["Reporting  Period from: ",null,null,"2023-01-01",null,"to:",{"$f":"+'Perf. Form 1'!G6:H6","v":"31/12/2023"}]
[]
["Energy Source",null,null,"Energy Usage",null,"Unit","Specific Usage (KWh/tonne incinerated"]
["Electricity Produced",null,null,{"$f":"+'Operational Data'!G23","v":295982},null,"MWh",{"$f":"+'Operational Data'!H23","v":831.48952428040877}]
["Electricity Imported   ",null,null,{"$f":"+'Operational Data'!G26","v":0},null,"MWh",{"$f":"+'Operational Data'!H26","v":"-"}]
["Electricity Exported",null,null,{"$f":"+'Operational Data'!G24","v":272162},null,"MWh",{"$f":"+'Operational Data'!H24","v":764.57302101886137}]
["Furnace Flame Fuel",null,null,294,null,"tonnes"]
["Steam/hot water exported",null,null,{"$f":"+'Operational Data'!G29","v":0},null,"GWh",{"$f":"+'Operational Data'!H29","v":"-"}]
[]
[]
[]
["Operator’s comments :"]
[]
[]
[]
[]
[]
[]
[]
[]
[]
[]
["Signed: ","REDACTED",null,null,null,null,"Date:","31/01/2024"]

{"sheet":"Permit Compliance","index":8,"n_rows":34,"n_cols":12,"rows_kept":34,"cut":false,"hidden":false,"merged":[[8,11,16,11],[26,0,26,10],[18,0,18,10],[31,1,31,3],[31,4,31,6],[31,7,31,9],[27,1,27,3],[27,4,27,6],[27,7,27,9],[28,1,28,3],[28,4,28,6],[28,7,28,9],[23,1,23,3],[23,4,23,6],[23,7,23,9],[24,1,24,3],[24,4,24,6],[32,1,32,3],[32,4,32,6],[32,7,32,9],[29,1,29,3],[29,4,29,6],[29,7,29,9],[30,1,30,3],[30,4,30,6],[30,7,30,9],[24,7,24,9],[21,1,21,3],[21,4,21,6],[21,7,21,9],[22,1,22,3],[22,4,22,6],[22,7,22,9],[19,1,19,3],[19,4,19,6],[19,7,19,9],[20,1,20,3],[20,4,20,6],[20,7,20,9],[14,0,14,1],[14,2,14,4],[14,5,14,8],[15,0,15,1],[16,2,16,4],[16,5,16,8],[15,2,15,4],[15,5,15,8],[16,0,16,1],[7,0,7,1],[7,2,7,8],[8,0,8,1],[8,2,8,4],[8,5,8,8],[33,4,33,8],[9,0,9,1],[9,2,9,4],[9,5,9,8],[10,0,10,1],[10,2,10,4],[10,5,10,8],[11,0,11,1],[11,2,11,4],[11,5,11,8],[12,0,12,1],[12,2,12,4],[12,5,12,8],[13,0,13,1],[13,2,13,4],[13,5,13,8]]}
[{"$f":"+'Cover Page'!$B$29","v":"Annual Performance Report 2023"},null,null,null,{"$f":"+'Cover Page'!$B$33","v":"Dunbar Energy Recovery Facility (ERF)"}]
[]
["Summary of Permit Compliance"]
[]
["Compliance with permit limits for continuously monitored pollutants"]
[]
["The plant met its emission limits as shown in the table below:"]
["Substance",null,"Percentage time compliant during operationNote 1",null,null,null,null,null,null,null,null,"Notes:"]
[null,null,"Half-hourly limit",null,null,"Daily limit",null,null,null,null,null,"Note 1: Please report to 2 decimal places, i.e. xx.xx%\n\nNote 2: Please provide a brief summary of each notification or non-compliance in the table (rather than just referring to notifications that were sent to the Regulator), including stating the value of measured result for any ELV exceedances.   \n\n"]
["Particulates",null,1,null,null,1]
["Oxides of nitrogen",null,1,null,null,1]
["Sulphur dioxide",null,0.99990000000000001,null,null,1]
["Carbon monoxide",null,"\n100.00%",null,null,1]
["Total organic carbon",null,1,null,null,1]
["Hydrogen chloride",null,0.99990000000000001,null,null,1]
["Hydrogen fluoride",null,1,null,null,1]
["Ammonia",null,1,null,null,1]
[]
["Summary of any notifications or non-compliances under the permit"]
["Date","Summary of notification or non-compliance [including Line/Reference]Note 2",null,null,"Reason ",null,null,"Measures taken to prevent reoccurrence"]
["2023-10-02","Exceedance of the hour-hourly Emissions Limit Value (ELV) for Sulphur Dioxide (SO2) on Line 2",null,null,"Plaster board identified as non-conforming waste",null,null,"Waste inspection visit conducted of supplier identified."]
["2023-11-14","Two consecutive exceedances of the half-hourly Emissions Limit Value (ELV) for Hydrogen Chloride (HCl) on Line 2 ",null,null,"Blockage of Lime hoses",null,null,"Revised PPMs, and improved visual indiction on control room screens"]
["2023-12-26","Exceedence of daily limited of dust indicated on Line 2 analyser 1",null,null,"False reading suspected on analyser due to contamination",null,null,"2nd annalyser indicated all readings were below ELV."]
[]
[]
[]
["Summary of any complaints received and actions to taken to resolve them."]
["Date","Summary of complaint [including Line/Reference]",null,null,"Reason *",null,null,"Measures taken to prevent reoccurrence"]
[null,"Nil"]
[]
[]
[]
[]
[null,null,null,null,"* including whether substantiated by the operator or SEPA"]

{"sheet":"Improvements","index":9,"n_rows":39,"n_cols":5,"rows_kept":39,"cut":false,"hidden":false,"merged":[[37,0,37,8],[38,0,47,8],[4,0,4,8],[5,0,13,8],[15,0,15,8],[16,0,24,8],[26,0,26,8],[27,0,35,8]]}
[{"$f":"+'Cover Page'!$B$29","v":"Annual Performance Report 2023"},null,null,null,{"$f":"+'Cover Page'!$B$33","v":"Dunbar Energy Recovery Facility (ERF)"}]
[]
["Summary of Plant Improvements"]
[]
["Summary of any efficiency improvements that have been completed within the year."]
["Purchase of an additional spare ash crane grab, to allow off site overhaul of existing grabs \nin order to improve bunker management.\n\nOn-going overhaul of waste crane grabs to improve reliability and waste delivery efficiecy.\n\nImproved management of reject water pit to reduce the quantity of water being removed from site by tankers.\n\n"]
[]
[]
[]
[]
[]
[]
[]
[]
[]
["Summary of any permit improvement conditions that have been completed within the year and the resulting environmental benefits."]
["Specialist contractor review of SNCR system installation and performance to ensure \noptimisation of the system in line with new ELVs.\n\nReplacement of PAC delivery hoses on both lines to eliminate system leaks.\n\n"]
[]
[]
[]
[]
[]
[]
[]
[]
[]
["Summary of any changes to the plant or operating techniques which required a variation to the permit and a summary of the resulting environmental impact."]
["Permit variation approved to increase waste throughput capacity of the facility.\n\nPermit updated to detail new Emmisions Limit Values in line with BREF report.\n\nCarbon Dioxide now continously monitored and reported as part of CEMS readings.\n\nHydrated lime system upgrades completed to distribution hoses, system capable of delivering 900kg/h."]
[]
[]
[]
[]
[]
[]
[]
[]
[]
["Summary of any other improvements made to the plant or planned to be made and a summary of the resulting environmental benefits."]
["100% replacement of flue gas treatmant plant fabric filter bags planned for the 2024 outage in May."]

{"sheet":"Public Liasion","index":10,"n_rows":29,"n_cols":5,"rows_kept":29,"cut":false,"hidden":false,"merged":[[23,0,24,1],[23,2,24,8],[25,0,26,1],[25,2,26,8],[28,0,28,8],[17,0,18,1],[17,2,18,8],[19,0,20,1],[19,2,20,8],[21,0,22,1],[21,2,22,8],[16,0,16,1],[16,2,16,8],[5,0,5,1],[5,2,5,8],[6,0,7,1],[6,2,7,8],[8,0,9,1],[8,2,9,8],[10,0,11,1],[10,2,11,8],[12,0,13,1],[12,2,13,8],[15,0,15,8]]}
[{"$f":"+'Cover Page'!$B$29","v":"Annual Performance Report 2023"},null,null,null,{"$f":"+'Cover Page'!$B$33","v":"Dunbar Energy Recovery Facility (ERF)"}]
[]
["Details of Public & Stakeholder Liasion"]
[]
["Summary of events held during the reporting year."]
["Date",null,"Description"]
["23/02/2023",null,"Community Liason Group meeting at site"]
[]
["24/05/2023",null,"Community Liason Group meeting at site"]
[]
["23/08/2023",null,"Community Liason Group meeting at site"]
[]
["22/11/2023",null,"Community Liason Group meeting at site"]
[]
[]
["List of events planned for next year"]
["Date",null,"Description"]
["20/03/2024",null,"Community Liason Group meeting at site"]
[]
["16/062024",null,"Community Liason Group meeting at site"]
[]
["18/09/2024",null,"Community Liason Group meeting at site"]
[]
["18/12/2024",null,"Community Liason Group meeting at site"]
[]
[]
[]
[]
["If you wish to be involved in the public liasion programme, please contact REDACTED@viridor.co.uk"]

{"sheet":"CO2 N2O","index":11,"n_rows":23,"n_cols":6,"rows_kept":23,"cut":false,"hidden":false,"merged":[[20,2,20,3],[23,1,23,3],[16,2,16,3],[4,0,4,3],[9,0,9,3],[17,0,17,3],[13,0,13,3],[12,0,12,1],[8,2,8,3],[11,2,11,3]]}
[{"$f":"+'Cover Page'!$B$29","v":"Annual Performance Report 2023"},null,{"$f":"+'Cover Page'!$B$33","v":"Dunbar Energy Recovery Facility (ERF)"}]
[]
["Carbon dioxide emissions and biogenic content of waste inputs",null,null,null,null,"Notes:"]
[]
["Carbon dioxide emissions (all types of plant)"]
[null,"Annual mass of carbon dioxide released","tonnes ",468026]
[null,"Annual mass of carbon dioxide released per tonne of waste burned","t CO2 / t waste ",1.31]
[null,"Annual mass of carbon dioxide released per MWh of energy exported","t CO2 / MWh export ",{"$f":"D6/'Operational Data'!G24","v":1.7196596144943086}]
[null,"Description of how annual carbon dioxide mass emission has been calculated. \nSee Note 1","Readings taken from mass release data produced by the CEMS ",null,null,"Note 1: Where available, data from CO2 CEMS should be used. \nOtherwise, only where no CEMS data is available, a suitable emissions factor should be used based on the tonnage of waste burned e.g.0.942 tCO2/t waste as per Tolvik report 2022, or other justified emissions factor  - refer to embedded Environment Agency guidance note above or updated version for suitable descriptive text."]
["Nitrous oxide emissions (only plants which use ammonia or urea to abate NOx emissions)"]
[null,"Annual mass emissions of nitrous oxide","tonnes N2O",0.53]
[null,"Description of how annual nitrous oxide mass emission has been calculated\nSee Note 2","Readings taken from mass release data produced by the CEMS ",null,null,"Note 2: Where available, data from N2O CEMS should be used. \nIf no CEMS data is available, from periodic monitoring. Otherwise, a suitable emissions factor should be used based on the tonnage of waste burned e.g. 0.0981 kgN20/t waste as per 2021 Pollution Inventory data for plants with urea-based SNCR - refer to embedded Environment Agency guidance note above or updated version for suitable descriptive text."]
["Total annual carbon dioxide and nitrous oxide emissions. \nSee Note 3. ",null,"tonnes CO2e",{"$f":"D6+(D11*298)","v":468183.94},null,"Note 3: Total annual carbon dioxide and nitrous oxide emissions reported as carbon dioxide equivalent where 1 tonne nitrous oxide is equivalent to 298 tonne carbon dioxide"]
["Biogenic CO2 emissions (See Note 4)",null,null,null,null,"Note 4: Only plants combusting residual municipal waste, refuse derived fuel or solid recovered fuel"]
[null,"Percentage of total carbon dioxide emissions arising from biogenic waste","%",0.56999999999999995]
[null,"No. of measurements undertaken","Number",4]
[null,"Description of how percentage biogenic carbon dioxide emissions have been measured or calculated.\nSee Note 5","Samples provided to a 3rd party UKAS accredited laboratory. Samples prepared using UKAS accredited methods in accordance with UKAS schedule No.0001\r",null,null,"Note 5: Examples include direct measurement via C14 method or BIOMA software - refer to embedded Environment Agency guidance note above or updated version for suitable descriptive text, quoting standards where relevant. \nOtherwise, as an approximation (and in lieu of any more accurate metrics which may be developed in future), the measured or estimated biogenic fraction by net calorific value can be assumed to be the same as the biogenic CO2 fraction of the total CO2 emissions from the plant. "]
["Biogenic fraction of waste feedstock (See Note 4)"]
[null,"Yearly average biogenic percentage of the waste by net calorific value (NCV)","%",57]
[null,"If sampling undertaken, no. of samples used to ascertain average biogenic % above","Number",4]
[null,"Description of how biogenic percentage (by NCV) has been calculated or estimated. \nSee Note 6","Samples provided to a 3rd party UKAS accredited laboratory. Samples prepared using UKAS accredited methods in accordance with UKAS schedule No.0001\r",null,null,"Note 6: Where available, data from waste sampling should be used; otherwise, an estimated figure with justification can be used, or a figure assumed on the basis of a national average e.g. 2017 WRAP data for residual waste of 51.8% biogenic energy content - refer to embedded Environment Agency guidance note above or updated version for suitable descriptive text, quoting standards where relevant. "]
[]
[null,"Comments:"]

{"sheet":"Residue Quality ","index":12,"n_rows":36,"n_cols":6,"rows_kept":36,"cut":false,"hidden":false,"merged":[[35,0,40,6],[32,3,32,4],[34,0,34,6],[27,0,28,1],[29,0,29,1],[30,0,30,1],[31,0,31,1],[32,0,32,1],[29,3,29,4],[30,3,30,4],[29,5,29,6],[30,5,30,6],[31,5,31,6],[32,5,32,6],[20,0,21,1],[20,2,21,6],[22,0,23,1],[22,2,23,6],[31,3,31,4],[27,2,28,2],[28,3,28,4],[28,5,28,6],[27,3,27,6],[26,0,26,6],[5,0,6,6],[7,0,8,6],[9,0,10,6],[14,0,15,1],[14,2,15,6],[16,0,17,1],[16,2,17,6],[18,0,19,1],[18,2,19,6],[12,0,12,6],[13,0,13,1],[13,2,13,6]]}
[{"$f":"+'Cover Page'!$B$29","v":"Annual Performance Report 2023"},null,null,null,{"$f":"+'Cover Page'!$B$33","v":"Dunbar Energy Recovery Facility (ERF)"}]
[]
["Residue Quality Monitoring Requirements"]
[]
["Summary of monitoring undertaken and compliance"]
["Incinerator Bottom Ash (IBA) is sampled and analysed twice per month as per the ESA ash sampling protocol. A full hazard characterisation report is done annually in February each year."]
[]
["Air Pollution Control Residue (APCR) is sampled and analysed on a quarterly basis. The site PPC permit requests analysis of mercury, cadmium, dioxins and furans, heavy metals, free lime and moisture. "]
[]
[]
[]
[]
["Commentary on any specific events"]
["Date & Event",null,"Description"]
[]
[]
[]
[]
[]
[]
[]
[]
[]
[]
[]
[]
["Residue Quality Monitoring Results"]
["Parameter (unit) ",null,"Limit","Normal Operation "]
[null,null,null,"Bottom ash  ",null,"APC Residues"]
["Loss on Ignition (average %)",null,"<5%",2.65]
["Total Organic Carbon (average %)",null,"<3%",1.04]
["No. of Assessments Undertaken",null,"---",24,null,4]
["No. of Hazardous Results",null,"---",0]
[]
["Comments :"]
["Results above are an average taken over the 24 results over the calendar year. "]

{"sheet":"Water","index":13,"n_rows":23,"n_cols":7,"rows_kept":23,"cut":false,"hidden":false,"merged":[[4,0,4,5],[7,0,8,5],[9,0,10,5],[16,0,16,8],[13,1,13,5],[14,1,14,5],[12,1,12,5],[5,0,6,5]]}
[{"$f":"+'Cover Page'!$B$29","v":"Annual Performance Report 2023"},null,null,null,{"$f":"+'Cover Page'!$B$33","v":"Dunbar Energy Recovery Facility (ERF)"}]
[]
["Emissions to Water"]
[]
["Summary of monitoring undertaken and compliance"]
["Surface water is sampled and analysed weekly by Viridor's chosen contractor. \nThe water is taken from an auto sampling station in the North East corner of the site (SW1) which samples the water prior to it flowing through the penstock valve and off site via the outfall. "]
[]
["There were no events during the calendar year, pollution or otherwise, to the water system to report on. "]
[]
[]
[]
[]
["Commentary on any specific events"]
["Date & Event","Description"]
["N/A"]
[]
["Emissions to Water / Sewer"]
["Parameter","Monitoring Frequency","Limit","Target","Max.","Average","Units"]
["pH","Weekly ","No Limit set ","6 - 9",8.4,8,"PH \nScale"]
["Suspended Solids","Weekly ","No Limit set ","0 - 30",22,6.36,"mg/l"]
["Biological Oxygen Demand (BOD)","Weekly ","No Limit set ","0 - 5",7,2.34,"mg/l"]
["Temperature ","Weekly ","No Limit set ","0 - 15",6.2,3.6,"°C"]
["Hydrocarbons ","Weekly ","No Limit set ","0 - 30",29,10,"ug/l"]

{"sheet":"Air (periodic)","index":14,"n_rows":51,"n_cols":16,"rows_kept":51,"cut":false,"hidden":false,"merged":[[20,0,20,1],[14,3,14,4],[15,3,15,4],[16,3,16,4],[17,3,17,4],[18,3,18,4],[19,3,19,4],[20,3,20,4],[5,15,5,17],[5,0,7,14],[14,0,14,1],[15,0,15,1],[16,0,16,1],[12,0,12,1],[11,5,11,6],[11,7,11,8],[11,9,11,10],[11,13,11,14],[11,11,11,12],[6,15,9,18],[9,0,9,14],[10,15,11,17],[12,15,13,17],[27,17,28,17],[30,3,30,4],[25,3,25,4],[26,3,26,4],[27,3,27,4],[28,3,28,4],[29,3,29,4],[23,3,23,4],[33,3,33,4],[34,3,34,4],[27,15,28,15],[27,16,28,16],[35,3,35,4],[36,3,36,4],[43,3,43,4],[37,3,37,4],[38,3,38,4],[40,3,40,4],[50,0,50,14],[31,0,31,1],[32,0,32,1],[33,0,33,1],[46,3,46,4],[47,3,47,4],[45,0,45,1],[46,0,46,1],[47,0,47,1],[48,0,48,1],[36,0,36,1],[44,3,44,4],[39,3,39,4],[45,3,45,4],[31,3,31,4],[32,3,32,4],[51,0,52,14],[37,0,37,1],[38,0,38,1],[34,0,34,1],[35,0,35,1],[49,0,49,1],[39,0,39,1],[40,0,40,1],[41,0,41,1],[42,0,42,1],[43,0,43,1],[44,0,44,1],[49,3,49,4],[41,3,41,4],[42,3,42,4],[48,3,48,4],[28,0,28,1],[29,0,29,1],[30,0,30,1],[25,0,25,1],[26,0,26,1],[27,0,27,1],[24,0,24,1],[13,3,13,4],[24,3,24,4],[10,0,11,1],[10,5,10,14],[10,3,11,4],[10,2,11,2],[17,0,17,1],[18,0,18,1],[19,0,19,1],[22,0,22,1],[23,0,23,1],[21,0,21,1],[13,0,13,1],[21,3,21,4],[22,3,22,4]]}
[{"$f":"+'Cover Page'!$B$29","v":"Annual Performance Report 2023"},null,null,null,{"$f":"+'Cover Page'!$B$33","v":"Dunbar Energy Recovery Facility (ERF)"}]
[]
["Emissions to Air (periodically monitored)"]
[]
["Summary of monitoring undertaken, standards used and compliance ",null,null,null,null,null,null,null,null,null,null,null,null,null,null,"Notes:"]
["Periodic monitoring is undertaken twice per year (H1 and H2) by a specialist contractor to determine compliance of Line A1 andd A2 of the Energy Recovery Facility with the conditions specified in the PPC Permit. \t\t\t\t\t\t\t\t\t\t\n\t\t\t\t\t\t\t\t\t\t",null,null,null,null,null,null,null,null,null,null,null,null,null,null,"This should include an interpretation of any trends in addition to other comments"]
[null,null,null,null,null,null,null,null,null,null,null,null,null,null,null,"Template may require adjustment for any bespoke monitoring requirements of permit - please also check that all default ELV values, reference periods and the stated oxygen reference value match those for your plant, and edit if necessary!"]
[]
[]
["Results of emissions to air that are periodically monitored - oxygen reference 11% "]
["Substance",null,"Ref. Period","Emission Limit Value*",null,"Average",null,null,null,null,null,null,null,null,null,"User to add additional tables or columns as necessary, depending on whether quarterly or bi-annual reporting is required for the compliance year. A1, A2, A3 etc refers to Emission Point Number - add or delete columns, or re-label, as required."]
[null,null,null,null,null,"A1",null,"A2"]
[null,null,null,null,null,"Half 1","Half 2","Half 1","Half 2",null,null,null,null,null,null,"* Denotes limits that were in force until 2 December 2023; from 3 December 2023 new ELVs applied based on the BAT-AEL range  -  refer to Permit for actual ELV."]
["Particulates",null,"1 hr","30 mg/m3",null,0.74,1.1000000000000001,0.12,1.1000000000000001]
["Oxides of nitrogen",null,"Ave value","400 mg/m3",null,236,210,251,209]
["Sulphur dioxide",null,"Ave value","200 mg/m3",null,22.2,32.9,15.6,26.8]
["Carbon monoxide",null,"Ave value","100 mg/m3",null,2,3,0.2,2.6]
["Total Organic Carbon",null,"Ave value","20 mg/m3",null,0.23,0.23,0.93,0.45]
["Hydrogen chloride",null,"Ave value","60 mg/m3",null,7.5,6,9,9.1999999999999993]
["Hydrogen fluoride",null,"Ave value","4 mg/m3",null,0.04,0.06,0.03,0.03]
["Ammonia",null,"Ave value","Not applicable",null,0.09,0.16,7.0000000000000007E-2,0.56999999999999995]
["Nitrous oxide",null,"Ave value","Not applicable",null,0.3,0.28999999999999998,0.27,0.34]
["PM10",null,"Ave value","Not applicable",null,0.11,0.3,0.05,0.1]
["PM2.5",null,"Ave value","Not applicable",null,0.28000000000000003,0.39,0.02,0.22]
["Cd and Th and their compounds",null,"0.5-8hrs","0.05 mg/m3",null,7.2999999999999996E-4,6.2E-4,6.8000000000000005E-4,7.2999999999999996E-4]
["Hg and its compounds",null,"0.5-8hrs","0.05 mg/m3",null,5.2999999999999998E-4,1.2999999999999999E-3,2.0999999999999999E-3,1.5E-3]
["Sb, As, Pb, Cr, Co, Cu, Mn, Ni, V and their compounds",null,"0.5-8hrs","0.5 mg/m3",null,0.02,1.9E-2,1.7999999999999999E-2,0.01]
["Dioxins & Furans (I-TEQ)",null,"6-8hrs","0.1 ng/m3",null,1.7999999999999999E-2,8.3000000000000001E-3,9.7999999999999997E-3,1.2E-2]
["PCBs (WHO-TEQ Humans / Mammals)",null,"6-8hrs","None set ng/m3",null,1.2999999999999999E-2,8.0000000000000004E-4,8.8999999999999995E-4,1E-3]
["PCBs (WHO-TEQ Fish)",null,"6-8hrs","None set ng/m3",null,6.0000000000000002E-5,3.8000000000000002E-5,4.1999999999999998E-5,4.5000000000000003E-5]
["PCBs (WHO-TEQ Birds)",null,"6-8hrs","None set ng/m3",null,2.2000000000000001E-3,1.6000000000000001E-3,2E-3,1.9E-3]
["Dioxins & Furans (WHO-TEQ Humans / Mammals)",null,"6-8hrs","None set ng/m3",null,1.7999999999999999E-2,8.5000000000000006E-3,0.01,1.2999999999999999E-2]
["Dioxins & Furans (WHO-TEQ Fish)",null,"6-8hrs","None set ng/m3",null,1.7999999999999999E-2,8.8999999999999999E-3,0.01,1.2999999999999999E-2]
["Dioxins & Furans (WHO-TEQ Birds)",null,"6-8hrs","None set ng/m3",null,2.5000000000000001E-2,1.2E-2,1.2999999999999999E-2,1.7000000000000001E-2]
["Anthanthrene",null,"6-8hrs","None set µg/m3",null,0.01,6.0000000000000001E-3,0.01,6.0000000000000001E-3]
["Benzo(a)anthracene",null,"6-8hrs","None set µg/m3",null,8.9999999999999993E-3,8.0000000000000002E-3,0.01,7.0999999999999994E-2]
["Benzo(a)pyrene",null,"6-8hrs","None set µg/m3",null,0.01,6.0000000000000001E-3,0.01,2.4E-2]
["Benzo(b)fluoranthene",null,"6-8hrs","None set µg/m3",null,0.01,8.0000000000000002E-3,0.01,0.04]
["Benzo(b)naptho(2,1-d) thiophene",null,"6-8hrs","None set µg/m3",null,8.9999999999999993E-3,1.6E-2,0.01,3.6999999999999998E-2]
["Benzo(c)phenanthrene",null,"6-8hrs","None set µg/m3",null,8.9999999999999993E-3,6.0000000000000001E-3,0.01,3.1E-2]
["Benzo(ghi)perylene",null,"6-8hrs","None set µg/m3",null,0.01,0.01,0.01,2.5999999999999999E-2]
["Benzo(k)fluoranthene",null,"6-8hrs","None set µg/m3",null,8.9999999999999993E-3,6.0000000000000001E-3,0.01,2.1999999999999999E-2]
["Cholanthrene",null,"6-8hrs","None set µg/m3",null,8.9999999999999993E-3,6.0000000000000001E-3,0.01,6.0000000000000001E-3]
["Chrysene",null,"6-8hrs","None set µg/m3",null,1.2E-2,2.1999999999999999E-2,0.01,0.10199999999999999]
["Cyclopenta(cd)pyrene",null,"6-8hrs","None set µg/m3",null,1.7000000000000001E-2,6.0000000000000001E-3,0.01,8.5000000000000006E-2]
["Dibenzo(ai)pyrene",null,"6-8hrs","None set µg/m3",null,0.09,6.0000000000000001E-3,0.01,6.0000000000000001E-3]
["Dibenzo(ah)anthracene",null,"6-8hrs","None set µg/m3",null,0.01,6.0000000000000001E-3,0.01,6.0000000000000001E-3]
["Fluoranthene",null,"6-8hrs","None set µg/m3",null,0.47599999999999998,5.7000000000000002E-2,0.218,0.57099999999999995]
["Indeno(123-cd) pyrene",null,"6-8hrs","None set µg/m3",null,0.01,6.0000000000000001E-3,0.01,6.0000000000000001E-3]
["Naphthalene",null,"6-8hrs","None set µg/m3",null,0.61699999999999999,0.35599999999999998,0.83499999999999996,0.59799999999999998]
["Comments : All results were compliant with ELVs for calendar year 2023."]

{"sheet":"Air (CEMS)","index":15,"n_rows":27,"n_cols":17,"rows_kept":27,"cut":false,"hidden":false,"merged":[[25,13,29,15],[5,0,8,12],[27,0,29,12],[13,0,14,0],[10,0,10,12],[11,0,12,0],[11,2,12,2],[11,1,12,1],[11,3,11,4],[11,5,11,6],[11,7,11,8],[11,9,11,10],[11,11,11,12],[26,0,26,12],[15,0,16,0],[17,0,18,0],[21,0,22,0],[23,0,24,0],[8,13,9,15],[6,13,7,15],[4,13,5,15],[11,13,13,15],[24,13,24,15],[19,0,20,0]]}
[{"$f":"+'Cover Page'!$B$29","v":"Annual Performance Report 2023"},null,null,null,null,null,null,null,{"$f":"+'Cover Page'!$B$33","v":"Dunbar Energy Recovery Facility (ERF)"}]
[]
["Emissions to Air (continously monitored)"]
[null,null,null,null,null,null,null,null,null,null,null,null,null,"Notes:"]
["Summary of monitoring undertaken, standards used and compliance",null,null,null,null,null,null,null,null,null,null,null,null,"Template may require adjustment for any bespoke monitoring requirements of permit"]
["The parameters below are monitored continuously by the Continuous Emissions Monitoring System (CEMS) at Dunbar ERF. The hardware is supplied and maintained by SICK (UK) and the data handling software is supplied and maintained by Envirosoft. \t\t\t\t\t\t\t\t\t\t\t\t\n\t\t\t\t\t\t\t\t\t\t\t\t"]
[null,null,null,null,null,null,null,null,null,null,null,null,null,"Please check that all default ELV values match those for your plant and edit if necessary!"]
[]
[null,null,null,null,null,null,null,null,null,null,null,null,null,"Report to minimum 1 decimal place, 2 decimal places if data readily available in DAHS."]
[]
["Results of emissions to air that are continuously monitored (maximum and average values for each line) - oxygen reference 11%"]
["Substance","Reference Period","Emission Limit Value*","A1",null,"A2",null,null,null,null,null,null,null,"*Denotes limits that were in force until 2 December 2023; from 3 December 2023 new Daily Average ELVs applied based on the BAT-AEL range  -  refer to Permit for actual ELV."]
[null,null,null,"Max.","Avg.","Max.","Avg."]
["Oxides of nitrogen","Daily mean","200 mg/m3 ",{"$f":"NOx!O19","v":181.5},{"$f":"NOx!N19","v":162.1},{"$f":"NOx!O34","v":187.8},{"$f":"NOx!N34","v":165.15}]
[null,"½ hourly mean","400 mg/m3 ",{"$f":"NOx!M19","v":237.2},{"$f":"NOx!L19","v":161.1166667},{"$f":"NOx!M34","v":220.8},{"$f":"NOx!L34","v":165.05833329999999}]
["Particulates","Daily mean","10 mg/m3",{"$f":"Particulates!O19","v":1.3},{"$f":"Particulates!N19","v":0.70833333300000001},{"$f":"Particulates!O34","v":6.3},{"$f":"Particulates!N34","v":0.50000000000000011}]
[null,"½ hourly mean","30 mg/m3 ",{"$f":"Particulates!M19","v":28.5},{"$f":"Particulates!L19","v":0.75},{"$f":"Particulates!O34","v":6.3},{"$f":"Particulates!L19","v":0.75}]
["Total Organic Carbon ","Daily mean","10 mg/m3 ",{"$f":"TOC!O19","v":0.8},{"$f":"TOC!N19","v":0.28333333300000002},{"$f":"TOC!O34","v":0.3},{"$f":"TOC!N34","v":7.4999999999999997E-2}]
[null,"½ hourly mean","20 mg/m3 ",{"$f":"TOC!M19","v":14.7},{"$f":"TOC!L19","v":0.32500000000000001},{"$f":"TOC!M34","v":12.1},{"$f":"TOC!L34","v":9.1666666999999993E-2},null,null,null,null,null,null,null,null,null,{"$f":"NOx!O19","v":181.5}]
["Hydrogen chloride ","Daily mean","10 mg/m3 ",{"$f":"HCl!O19","v":8.3000000000000007},{"$f":"HCl!N19","v":5.0916666670000001},{"$f":"HCl!O34","v":7.7},{"$f":"HCl!N34","v":5.6583333329999999}]
[null,"½ hourly mean","60 mg/m3 ",{"$f":"HCl!M19","v":59.8},{"$f":"HCl!L19","v":5.0999999999999996},{"$f":"HCl!M34","v":65.900000000000006},{"$f":"HCl!L34","v":5.6666666670000003}]
["Sulphur dioxide","Daily mean","50 mg/m3 ",{"$f":"'SO2'!O19","v":31.6},{"$f":"'SO2'!N19","v":20.833333329999999},{"$f":"'SO2'!O34","v":31.6},{"$f":"'SO2'!N34","v":19.208333329999999}]
[null,"½ hourly mean","200 mg/m3 ",{"$f":"'SO2'!M19","v":190.5},{"$f":"'SO2'!L19","v":20.833333329999999},{"$f":"'SO2'!M34","v":367.4},{"$f":"'SO2'!L34","v":19.225000000000001}]
["Carbon monoxide ","Daily mean","50 mg/m3 ",{"$f":"'CO 95% 10 min'!Q22","v":10},{"$f":"'CO 95% 10 min'!P22","v":2.0583333330000002},{"$f":"'CO 95% 10 min'!Q37","v":17.2},{"$f":"'CO 95% 10 min'!P37","v":3.141666667}]
[null,"95%ile 10-min avg *","150 mg/m3 **",{"$f":"'CO 95% 10 min'!M22","v":18.358333330000001},{"$f":"'CO 95% 10 min'!N22","v":2.15},{"$f":"'CO 95% 10 min'!M37","v":32.883333329999999},{"$f":"'CO 95% 10 min'!N37","v":3.1749999999999998}]
[" Ammonia","Daily mean","See comments***",{"$f":"'NH3'!O19","v":3.6},{"$f":"'NH3'!N19","v":0.16},{"$f":"'NH3'!O34","v":3.4},{"$f":"'NH3'!N34","v":0.64},null,null,null,null,null,null,"***Ammonia: 1. Some Permits may have included ammonia ELVs predating the BAT review in which case insert the relevant ELV in Column C. 2. ELV may not have been specified from 3/12/2023 for Permits where SCR/SNCR is not carried out, in this case put 'Not applicable' in Column C. 3. Continuous monitoring data should be reported if it is a permit requirement irrespective of whether an ELV has been set."]
["Comments : \n"]

{"sheet":"HCl","index":16,"n_rows":79,"n_cols":17,"rows_kept":79,"cut":false,"hidden":false,"merged":[[12,16,15,18],[51,9,63,9],[66,9,78,9],[4,9,4,14],[4,1,4,3],[4,4,4,6],[48,0,51,6],[47,0,47,6],[6,9,18,9],[21,9,33,9],[36,9,48,9],[3,16,7,18],[9,16,11,18],[18,4,18,6]]}
["Annual Performance Report 2023",null,null,null,"Dunbar Energy Recovery Facility (ERF)"]
[]
["Monitoring of Hydrogen Chloride emissions",null,null,"Whole Installation",null,null,"See  Notes in Cell Q3",null,null,"Monitoring of Hydrogen Chloride emissions",null,null,null,"Per Combustion Line",null,null,"Notes:"]
[null,null,null,null,null,null,null,null,null,null,null,null,null,null,null,null,"User to add logic to complete Whole installation, Table A5:G18. From the data in Per Combustion Line, Table J6:O79, subject to No. of lines installed"]
["mg/Nm3","1/2 Hourly Reference Periods",null,null,"Daily Reference Periods"]
[2023,"1/2 hourly HCl ELV","Monthly 1/2 hourly mean","Highest 1/2 hourly maximum","Daily HCl ELV*","Monthly daily mean","Highest daily maximum",null,null,2023,"mg/Nm3","Monthly 1/2 hourly mean","Monthly 1/2 hourly maximum","Monthly daily mean","Monthly daily maximum"]
["Jan",60,5.2,30.8,10,5.2,6.5,null,null,"A1","Jan",5,30.8,5.0999999999999996,6.5]
["Feb",60,5.2,12.3,10,5.2,5.9,null,null,null,"Feb",5.2,7,5.2,5.5]
["Mar",60,4.5999999999999996,11.7,10,4.5,5.8,null,null,null,"Mar",4.2,11.7,4.2,5.6,null,"Whole Installation table A5:G18:"]
["Apr",60,5,19.100000000000001,10,5.0999999999999996,5.9,null,null,null,"Apr",4.8,8.1999999999999993,4.8,5.6,null,"Mean: for 1/2 hourly and daily periods calculate mean of values across all operational combustion lines for the month"]
["May",60,5.0999999999999996,9.4,10,5,5.8,null,null,null,"May",4.8,7.2,4.8,5.8]
["Jun",60,5.7,48.1,10,5.7,8.3000000000000007,null,null,null,"Jun",5.6,48.1,5.6,8.3000000000000007]
["Jul",60,5.6,59.8,10,5.6,6.6,null,null,null,"Jul",5.5,59.8,5.4,6,null,"Maximum: for 1/2 hourly and daily periods use the highest value across all operational combustion lines for the month"]
["Aug",60,5.8,11,10,5.8,6.7,null,null,null,"Aug",5.6,8.1,5.6,6]
["Sep",60,5.9,35.799999999999997,10,5.8,7.5,null,null,null,"Sep",5.4,8.1,5.3,6.2]
["Oct",60,5.6,9.6999999999999993,10,5.6,6.6,null,null,null,"Oct",5,8.1999999999999993,5,6.1]
["Nov",60,5.3,65.900000000000006,10,5.3,7.7,null,null,null,"Nov",4.5,7.6,4.5,5.7]
["Dec",60,5.8,29.7,10,5.9,7.3,null,null,null,"Dec",5.6,7.7,5.6,6.5]
[null,null,null,null,"* ELV reduced to 8 mg/Nm3 on 3 December 2023",null,null,null,null,null,"Annual",5.0999999999999996,59.8,5.0916666670000001,8.3000000000000007]
[]
[null,null,null,null,null,null,null,null,null,2023,"mg/Nm3","Monthly 1/2 hourly mean","Monthly 1/2 hourly maximum","Monthly daily mean","Monthly daily maximum"]
[null,null,null,null,null,null,null,null,null,"A2","Jan",5.3,10.1,5.3,6]
[null,null,null,null,null,null,null,null,null,null,"Feb",5.2,12.3,5.2,5.9]
[null,null,null,null,null,null,null,null,null,null,"Mar",4.9000000000000004,9.9,4.8,5.8]
[null,null,null,null,null,null,null,null,null,null,"Apr",5.3,19.100000000000001,5.3,5.9]
[null,null,null,null,null,null,null,null,null,null,"May",5.4,9.4,5.4,5.8]
[null,null,null,null,null,null,null,null,null,null,"Jun",5.7,19.100000000000001,5.7,6.2]
[null,null,null,null,null,null,null,null,null,null,"Jul",5.7,9.6999999999999993,5.7,6.6]
[null,null,null,null,null,null,null,null,null,null,"Aug",6,11,6,6.7]
[null,null,null,null,null,null,null,null,null,null,"Sep",6.3,35.799999999999997,6.3,7.5]
[null,null,null,null,null,null,null,null,null,null,"Oct",6.1,9.6999999999999993,6.1,6.6]
[null,null,null,null,null,null,null,null,null,null,"Nov",6.1,65.900000000000006,6,7.7]
[null,null,null,null,null,null,null,null,null,null,"Dec",6,29.7,6.1,7.3]
[null,null,null,null,null,null,null,null,null,null,"Annual",5.6666666670000003,65.900000000000006,5.6583333329999999,7.7]
[]
[null,null,null,null,null,null,null,null,null,2023,"mg/Nm3","Monthly 1/2 hourly mean","Monthly 1/2 hourly maximum","Monthly daily mean","Monthly daily maximum"]
[null,null,null,null,null,null,null,null,null,"A3","Jan"]
[null,null,null,null,null,null,null,null,null,null,"Feb"]
[null,null,null,null,null,null,null,null,null,null,"Mar"]
[null,null,null,null,null,null,null,null,null,null,"Apr"]
[null,null,null,null,null,null,null,null,null,null,"May"]
[null,null,null,null,null,null,null,null,null,null,"Jun"]
[null,null,null,null,null,null,null,null,null,null,"Jul"]
[null,null,null,null,null,null,null,null,null,null,"Aug"]
[null,null,null,null,null,null,null,null,null,null,"Sep"]
[null,null,null,null,null,null,null,null,null,null,"Oct"]
[null,null,null,null,null,null,null,null,null,null,"Nov"]
["Comments : Please include an explanation / interpretation of trends in the data reported",null,null,null,null,null,null,null,null,null,"Dec"]
[null,null,null,null,null,null,null,null,null,null,"Annual",{"$error":"#DIV/0!"},0,{"$error":"#DIV/0!"},0]
[]
[null,null,null,null,null,null,null,null,null,2023,"mg/Nm3","Monthly 1/2 hourly mean","Monthly 1/2 hourly maximum","Monthly daily mean","Monthly daily maximum"]
[null,null,null,null,null,null,null,null,null,"A4","Jan"]
[null,null,null,null,null,null,null,null,null,null,"Feb"]
[null,null,null,null,null,null,null,null,null,null,"Mar"]
[null,null,null,null,null,null,null,null,null,null,"Apr"]
[null,null,null,null,null,null,null,null,null,null,"May"]
[null,null,null,null,null,null,null,null,null,null,"Jun"]
[null,null,null,null,null,null,null,null,null,null,"Jul"]
[null,null,null,null,null,null,null,null,null,null,"Aug"]
[null,null,null,null,null,null,null,null,null,null,"Sep"]
[null,null,null,null,null,null,null,null,null,null,"Oct"]
[null,null,null,null,null,null,null,null,null,null,"Nov"]
[null,null,null,null,null,null,null,null,null,null,"Dec"]
[null,null,null,null,null,null,null,null,null,null,"Annual",{"$error":"#DIV/0!"},0,{"$error":"#DIV/0!"},0]
[]
[null,null,null,null,null,null,null,null,null,2023,"mg/Nm3","Monthly 1/2 hourly mean","Monthly 1/2 hourly maximum","Monthly daily mean","Monthly daily maximum"]
[null,null,null,null,null,null,null,null,null,"A5","Jan"]
[null,null,null,null,null,null,null,null,null,null,"Feb"]
[null,null,null,null,null,null,null,null,null,null,"Mar"]
[null,null,null,null,null,null,null,null,null,null,"Apr"]
[null,null,null,null,null,null,null,null,null,null,"May"]
[null,null,null,null,null,null,null,null,null,null,"Jun"]
[null,null,null,null,null,null,null,null,null,null,"Jul"]
[null,null,null,null,null,null,null,null,null,null,"Aug"]
[null,null,null,null,null,null,null,null,null,null,"Sep"]
[null,null,null,null,null,null,null,null,null,null,"Oct"]
[null,null,null,null,null,null,null,null,null,null,"Nov"]
[null,null,null,null,null,null,null,null,null,null,"Dec"]
[null,null,null,null,null,null,null,null,null,null,"Annual",{"$error":"#DIV/0!"},0,{"$error":"#DIV/0!"},0]

{"sheet":"SO2","index":17,"n_rows":79,"n_cols":17,"rows_kept":79,"cut":false,"hidden":false,"merged":[[3,16,7,18],[9,16,11,18],[12,16,15,18],[66,9,78,9],[4,1,4,3],[4,4,4,6],[4,9,4,14],[6,9,18,9],[21,9,33,9],[36,9,48,9],[47,0,47,6],[48,0,51,6],[51,9,63,9],[18,4,18,6]]}
["Annual Performance Report 2023",null,null,null,"Dunbar Energy Recovery Facility (ERF)"]
[]
["Monitoring of Sulphur dioxide emissions",null,null,"Whole Installation",null,null,"See  Notes in Cell Q3",null,null,"Monitoring of Sulphur dioxide emissions",null,null,null,"Per Combustion Line",null,null,"Notes:"]
[null,null,null,null,null,null,null,null,null,null,null,null,null,null,null,null,"User to add logic to complete Whole installation, Table A5:G18. From the data in Per Combustion Line, Table J6:O79, subject to No. of lines installed"]
["mg/Nm3","1/2 Hourly Reference Periods",null,null,"Daily Reference Periods"]
[2023,"1/2 hourly SO2 ELV","Monthly 1/2 hourly mean","Highest 1/2 hourly maximum","Daily SO2 ELV*","Monthly daily mean","Highest daily maximum",null,null,2023,"mg/Nm3","Monthly 1/2 hourly mean","Monthly 1/2 hourly maximum","Monthly daily mean","Monthly daily maximum"]
["Jan",200,14.3,34.700000000000003,50,14.4,19.8,null,null,"A1","Jan",13.5,30.7,13.6,19.100000000000001]
["Feb",200,19.2,96.5,50,19.100000000000001,25.9,null,null,null,"Feb",17,34.1,16.8,23.3]
["Mar",200,22.6,190.5,50,22.6,31.6,null,null,null,"Mar",21.3,190.5,21.3,31.6,null,"Whole Installation table A5:G18:"]
["Apr",200,22,54.6,50,22,27.1,null,null,null,"Apr",22.4,54.6,22.4,27.1,null,"Mean: for 1/2 hourly and daily periods calculate mean of values across all operational combustion lines for the month"]
["May",200,21.8,41.4,50,21.8,27.8,null,null,null,"May",22.7,41.4,22.7,27.8]
["Jun",200,19.600000000000001,53.7,50,19.600000000000001,24.6,null,null,null,"Jun",20.6,45.4,20.6,24.6]
["Jul",200,20.5,67.599999999999994,50,20.5,27.1,null,null,null,"Jul",22.1,67.599999999999994,22.1,27.1,null,"Maximum: for 1/2 hourly and daily periods use the highest value across all operational combustion lines for the month"]
["Aug",200,17.5,38.700000000000003,50,17.5,23.3,null,null,null,"Aug",19.5,38.700000000000003,19.600000000000001,23.3]
["Sep",200,17.8,38.1,50,17.8,26.4,null,null,null,"Sep",20.6,38.1,20.6,26.4]
["Oct",200,21.5,367.4,50,21.4,31.6,null,null,null,"Oct",23.1,119.6,23,29]
["Nov",200,22.6,52.3,50,22.6,29.3,null,null,null,"Nov",25.1,52.3,25.1,29.3]
["Dec",200,21.3,40.5,50,21.3,27.9,null,null,null,"Dec",22.1,35.4,22.2,27.9]
[null,null,null,null,"* ELV reduced to 40 mg/Nm3 on 3 December 2023",null,null,null,null,null,"Annual",20.833333329999999,190.5,20.833333329999999,31.6]
[]
[null,null,null,null,null,null,null,null,null,2023,"mg/Nm3","Monthly 1/2 hourly mean","Monthly 1/2 hourly maximum","Monthly daily mean","Monthly daily maximum"]
[null,null,null,null,null,null,null,null,null,"A2","Jan",15.1,34.700000000000003,15.2,19.8]
[null,null,null,null,null,null,null,null,null,null,"Feb",21.4,96.5,21.4,25.9]
[null,null,null,null,null,null,null,null,null,null,"Mar",23.8,96,23.8,26.8]
[null,null,null,null,null,null,null,null,null,null,"Apr",21.5,48,21.6,25]
[null,null,null,null,null,null,null,null,null,null,"May",20.9,39.799999999999997,20.9,25.7]
[null,null,null,null,null,null,null,null,null,null,"Jun",18.5,53.7,18.5,23]
[null,null,null,null,null,null,null,null,null,null,"Jul",18.8,53.3,18.8,22.7]
[null,null,null,null,null,null,null,null,null,null,"Aug",15.5,37.4,15.4,19.5]
[null,null,null,null,null,null,null,null,null,null,"Sep",14.9,35.6,14.9,20.3]
[null,null,null,null,null,null,null,null,null,null,"Oct",19.8,367.4,19.7,31.6]
[null,null,null,null,null,null,null,null,null,null,"Nov",20,46.7,20,25.5]
[null,null,null,null,null,null,null,null,null,null,"Dec",20.5,40.5,20.3,26.4]
[null,null,null,null,null,null,null,null,null,null,"Annual",19.225000000000001,367.4,19.208333329999999,31.6]
[]
[null,null,null,null,null,null,null,null,null,2023,"mg/Nm3","Monthly 1/2 hourly mean","Monthly 1/2 hourly maximum","Monthly daily mean","Monthly daily maximum"]
[null,null,null,null,null,null,null,null,null,"A3","Jan"]
[null,null,null,null,null,null,null,null,null,null,"Feb"]
[null,null,null,null,null,null,null,null,null,null,"Mar"]
[null,null,null,null,null,null,null,null,null,null,"Apr"]
[null,null,null,null,null,null,null,null,null,null,"May"]
[null,null,null,null,null,null,null,null,null,null,"Jun"]
[null,null,null,null,null,null,null,null,null,null,"Jul"]
[null,null,null,null,null,null,null,null,null,null,"Aug"]
[null,null,null,null,null,null,null,null,null,null,"Sep"]
[null,null,null,null,null,null,null,null,null,null,"Oct"]
[null,null,null,null,null,null,null,null,null,null,"Nov"]
["Comments : Please include an explanation / interpretation of trends in the data reported",null,null,null,null,null,null,null,null,null,"Dec"]
[null,null,null,null,null,null,null,null,null,null,"Annual",{"$error":"#DIV/0!"},0,{"$error":"#DIV/0!"},0]
[]
[null,null,null,null,null,null,null,null,null,2023,"mg/Nm3","Monthly 1/2 hourly mean","Monthly 1/2 hourly maximum","Monthly daily mean","Monthly daily maximum"]
[null,null,null,null,null,null,null,null,null,"A4","Jan"]
[null,null,null,null,null,null,null,null,null,null,"Feb"]
[null,null,null,null,null,null,null,null,null,null,"Mar"]
[null,null,null,null,null,null,null,null,null,null,"Apr"]
[null,null,null,null,null,null,null,null,null,null,"May"]
[null,null,null,null,null,null,null,null,null,null,"Jun"]
[null,null,null,null,null,null,null,null,null,null,"Jul"]
[null,null,null,null,null,null,null,null,null,null,"Aug"]
[null,null,null,null,null,null,null,null,null,null,"Sep"]
[null,null,null,null,null,null,null,null,null,null,"Oct"]
[null,null,null,null,null,null,null,null,null,null,"Nov"]
[null,null,null,null,null,null,null,null,null,null,"Dec"]
[null,null,null,null,null,null,null,null,null,null,"Annual",{"$error":"#DIV/0!"},0,{"$error":"#DIV/0!"},0]
[]
[null,null,null,null,null,null,null,null,null,2023,"mg/Nm3","Monthly 1/2 hourly mean","Monthly 1/2 hourly maximum","Monthly daily mean","Monthly daily maximum"]
[null,null,null,null,null,null,null,null,null,"A5","Jan"]
[null,null,null,null,null,null,null,null,null,null,"Feb"]
[null,null,null,null,null,null,null,null,null,null,"Mar"]
[null,null,null,null,null,null,null,null,null,null,"Apr"]
[null,null,null,null,null,null,null,null,null,null,"May"]
[null,null,null,null,null,null,null,null,null,null,"Jun"]
[null,null,null,null,null,null,null,null,null,null,"Jul"]
[null,null,null,null,null,null,null,null,null,null,"Aug"]
[null,null,null,null,null,null,null,null,null,null,"Sep"]
[null,null,null,null,null,null,null,null,null,null,"Oct"]
[null,null,null,null,null,null,null,null,null,null,"Nov"]
[null,null,null,null,null,null,null,null,null,null,"Dec"]
[null,null,null,null,null,null,null,null,null,null,"Annual",{"$error":"#DIV/0!"},0,{"$error":"#DIV/0!"},0]

{"sheet":"NOx","index":18,"n_rows":79,"n_cols":17,"rows_kept":79,"cut":false,"hidden":false,"merged":[[3,16,7,18],[9,16,11,18],[12,16,15,18],[66,9,78,9],[4,1,4,3],[4,4,4,6],[4,9,4,14],[6,9,18,9],[21,9,33,9],[36,9,48,9],[47,0,47,6],[48,0,51,6],[51,9,63,9],[18,4,18,6]]}
["Annual Performance Report 2023",null,null,null,"Dunbar Energy Recovery Facility (ERF)"]
[]
["Monitoring of Oxides of Nitrogen emissions",null,null,"Whole Installation",null,null,"See  Notes in Cell Q3",null,null,"Monitoring of Oxides of Nitrogen emissions",null,null,null,"Per Combustion Line",null,null,"Notes:"]
[null,null,null,null,null,null,null,null,null,null,null,null,null,null,null,null,"User to add logic to complete Whole installation, Table A5:G18. From the data in Per Combustion Line, Table J6:O79, subject to No. of lines installed"]
["mg/Nm3","1/2 Hourly Reference Periods",null,null,"Daily Reference Periods"]
[2023,"1/2 hourly NOx ELV","Monthly 1/2 hourly mean","Highest 1/2 hourly maximum","Daily NOx ELV*","Monthly daily mean","Highest daily maximum",null,null,2023,"mg/Nm3","Monthly 1/2 hourly mean","Monthly 1/2 hourly maximum","Monthly daily mean","Monthly daily maximum"]
["Jan",400,167.1,220.8,200,167.4,177,null,null,"A1","Jan",163.80000000000001,189.7,164,168.1]
["Feb",400,166.5,219,200,166.7,173.4,null,null,null,"Feb",165,189,165.3,168.4]
["Mar",400,166,194.7,200,166.1,172.6,null,null,null,"Mar",164.7,192.3,164.9,167.9,null,"Whole Installation table A5:G18:"]
["Apr",400,160.80000000000001,198.3,200,160.9,172.5,null,null,null,"Apr",162.19999999999999,198.3,162.19999999999999,168.4,null,"Mean: for 1/2 hourly and daily periods calculate mean of values across all operational combustion lines for the month"]
["May",400,165.2,199.4,200,165.4,175.5,null,null,null,"May",161.19999999999999,199.4,161.19999999999999,167.4]
["Jun",400,158.80000000000001,206.1,200,158.80000000000001,168.7,null,null,null,"Jun",151.9,197.6,152,163.80000000000001]
["Jul",400,163.6,217.1,200,163.6,187.8,null,null,null,"Jul",160.80000000000001,213.5,160.80000000000001,168.7,null,"Maximum: for 1/2 hourly and daily periods use the highest value across all operational combustion lines for the month"]
["Aug",400,164,215.9,200,164,177.8,null,null,null,"Aug",164.3,200.1,164.4,169.2]
["Sep",400,165.9,231.2,200,165.9,171.2,null,null,null,"Sep",154.69999999999999,231.2,165.7,171.2]
["Oct",400,166.4,237.2,200,166.5,181.5,null,null,null,"Oct",168.3,237.2,168.4,181.5]
["Nov",400,159.4,210.3,200,159.30000000000001,174.2,null,null,null,"Nov",159,210.3,158.9,174.2]
["Dec",400,159.1,219.1,200,159.30000000000001,166.3,null,null,null,"Dec",157.5,219.1,157.4,162.5]
[null,null,null,null,"* ELV reduced to 180 mg/Nm3 on 3 December 2023",null,null,null,null,null,"Annual",161.1166667,237.2,162.1,181.5]
[]
[null,null,null,null,null,null,null,null,null,2023,"mg/Nm3","Monthly 1/2 hourly mean","Monthly 1/2 hourly maximum","Monthly daily mean","Monthly daily maximum"]
[null,null,null,null,null,null,null,null,null,"A2","Jan",170.4,220.8,170.7,177]
[null,null,null,null,null,null,null,null,null,null,"Feb",168,219,168,173.4]
[null,null,null,null,null,null,null,null,null,null,"Mar",167.2,194.7,167.2,172.6]
[null,null,null,null,null,null,null,null,null,null,"Apr",159.30000000000001,194.7,159.5,172.5]
[null,null,null,null,null,null,null,null,null,null,"May",169.2,197.5,169.5,175.5]
[null,null,null,null,null,null,null,null,null,null,"Jun",165.6,206.1,165.6,168.7]
[null,null,null,null,null,null,null,null,null,null,"Jul",166.4,217.1,166.4,187.8]
[null,null,null,null,null,null,null,null,null,null,"Aug",163.6,215.9,163.6,177.8]
[null,null,null,null,null,null,null,null,null,null,"Sep",166.1,213.9,166,170.4]
[null,null,null,null,null,null,null,null,null,null,"Oct",164.5,203.2,164.5,173.4]
[null,null,null,null,null,null,null,null,null,null,"Nov",159.80000000000001,204.5,159.69999999999999,168.8]
[null,null,null,null,null,null,null,null,null,null,"Dec",160.6,210.8,161.1,166.3]
[null,null,null,null,null,null,null,null,null,null,"Annual",165.05833329999999,220.8,165.15,187.8]
[]
[null,null,null,null,null,null,null,null,null,2023,"mg/Nm3","Monthly 1/2 hourly mean","Monthly 1/2 hourly maximum","Monthly daily mean","Monthly daily maximum"]
[null,null,null,null,null,null,null,null,null,"A3","Jan"]
[null,null,null,null,null,null,null,null,null,null,"Feb"]
[null,null,null,null,null,null,null,null,null,null,"Mar"]
[null,null,null,null,null,null,null,null,null,null,"Apr"]
[null,null,null,null,null,null,null,null,null,null,"May"]
[null,null,null,null,null,null,null,null,null,null,"Jun"]
[null,null,null,null,null,null,null,null,null,null,"Jul"]
[null,null,null,null,null,null,null,null,null,null,"Aug"]
[null,null,null,null,null,null,null,null,null,null,"Sep"]
[null,null,null,null,null,null,null,null,null,null,"Oct"]
[null,null,null,null,null,null,null,null,null,null,"Nov"]
["Comments : Please include an explanation / interpretation of trends in the data reported",null,null,null,null,null,null,null,null,null,"Dec"]
[null,null,null,null,null,null,null,null,null,null,"Annual",{"$error":"#DIV/0!"},0,{"$error":"#DIV/0!"},0]
[]
[null,null,null,null,null,null,null,null,null,2023,"mg/Nm3","Monthly 1/2 hourly mean","Monthly 1/2 hourly maximum","Monthly daily mean","Monthly daily maximum"]
[null,null,null,null,null,null,null,null,null,"A4","Jan"]
[null,null,null,null,null,null,null,null,null,null,"Feb"]
[null,null,null,null,null,null,null,null,null,null,"Mar"]
[null,null,null,null,null,null,null,null,null,null,"Apr"]
[null,null,null,null,null,null,null,null,null,null,"May"]
[null,null,null,null,null,null,null,null,null,null,"Jun"]
[null,null,null,null,null,null,null,null,null,null,"Jul"]
[null,null,null,null,null,null,null,null,null,null,"Aug"]
[null,null,null,null,null,null,null,null,null,null,"Sep"]
[null,null,null,null,null,null,null,null,null,null,"Oct"]
[null,null,null,null,null,null,null,null,null,null,"Nov"]
[null,null,null,null,null,null,null,null,null,null,"Dec"]
[null,null,null,null,null,null,null,null,null,null,"Annual",{"$error":"#DIV/0!"},0,{"$error":"#DIV/0!"},0]
[]
[null,null,null,null,null,null,null,null,null,2023,"mg/Nm3","Monthly 1/2 hourly mean","Monthly 1/2 hourly maximum","Monthly daily mean","Monthly daily maximum"]
[null,null,null,null,null,null,null,null,null,"A5","Jan"]
[null,null,null,null,null,null,null,null,null,null,"Feb"]
[null,null,null,null,null,null,null,null,null,null,"Mar"]
[null,null,null,null,null,null,null,null,null,null,"Apr"]
[null,null,null,null,null,null,null,null,null,null,"May"]
[null,null,null,null,null,null,null,null,null,null,"Jun"]
[null,null,null,null,null,null,null,null,null,null,"Jul"]
[null,null,null,null,null,null,null,null,null,null,"Aug"]
[null,null,null,null,null,null,null,null,null,null,"Sep"]
[null,null,null,null,null,null,null,null,null,null,"Oct"]
[null,null,null,null,null,null,null,null,null,null,"Nov"]
[null,null,null,null,null,null,null,null,null,null,"Dec"]
[null,null,null,null,null,null,null,null,null,null,"Annual",{"$error":"#DIV/0!"},0,{"$error":"#DIV/0!"},0]

{"sheet":"TOC","index":19,"n_rows":79,"n_cols":17,"rows_kept":79,"cut":false,"hidden":false,"merged":[[3,16,7,18],[9,16,11,18],[12,16,15,18],[66,9,78,9],[4,1,4,3],[4,4,4,6],[4,9,4,14],[6,9,18,9],[21,9,33,9],[36,9,48,9],[47,0,47,6],[48,0,51,6],[51,9,63,9]]}
["Annual Performance Report 2023",null,null,null,"Dunbar Energy Recovery Facility (ERF)"]
[]
["Monitoring of Total organic carbon emissions",null,null,"Whole Installation",null,null,"See  Notes in Cell Q3",null,null,"Monitoring of Total organic carbon emissions",null,null,null,"Per Combustion Line",null,null,"Notes:"]
[null,null,null,null,null,null,null,null,null,null,null,null,null,null,null,null,"User to add logic to complete Whole installation, Table A5:G18. From the data in Per Combustion Line, Table J6:O79, subject to No. of lines installed"]
["mg/Nm3","1/2 Hourly Reference Periods",null,null,"Daily Reference Periods"]
[2023,"1/2 hourly TOC ELV","Monthly 1/2 hourly mean","Highest 1/2 hourly maximum","Daily TOC ELV","Monthly daily mean","Highest daily maximum",null,null,2023,"mg/Nm3","Monthly 1/2 hourly mean","Monthly 1/2 hourly maximum","Monthly daily mean","Monthly daily maximum"]
["Jan",20,0.3,7.4,10,0.3,0.7,null,null,"A1","Jan",0.5,5.0999999999999996,0.5,0.7]
["Feb",20,0.4,8.8000000000000007,10,0.3,0.7,null,null,null,"Feb",0.6,8.8000000000000007,0.5,0.7]
["Mar",20,0.4,3.8,10,-0.3,0.7,null,null,null,"Mar",0.6,3.8,0.5,0.7,null,"Whole Installation table A5:G18:"]
["Apr",20,0.4,12.1,10,0.3,0.7,null,null,null,"Apr",0.6,6.9,0.5,0.7,null,"Mean: for 1/2 hourly and daily periods calculate mean of values across all operational combustion lines for the month"]
["May",20,0.4,5.9,10,0.3,0.7,null,null,null,"May",0.6,4,0.5,0.7]
["Jun",20,0.3,14.7,10,0.3,0.8,null,null,null,"Jun",0.5,14.7,0.5,0.8]
["Jul",20,0.2,9.3000000000000007,10,0.15,0.7,null,null,null,"Jul",0.2,9.3000000000000007,0.2,0.7,null,"Maximum: for 1/2 hourly and daily periods use the highest value across all operational combustion lines for the month"]
["Aug",20,0.05,3.2,10,0.05,0.2,null,null,null,"Aug",0,2.9,0,0.1]
["Sep",20,0.1,4.5,10,0.05,0.3,null,null,null,"Sep",0,4.5,0,0.3]
["Oct",20,0.05,6.5,10,0,0.2,null,null,null,"Oct",0.1,6.5,0,0.2]
["Nov",20,0.05,6.5,10,0.05,0.2,null,null,null,"Nov",0.1,3.1,0.1,0.2]
["Dec",20,0.1,6.7,10,0.05,0.2,null,null,null,"Dec",0.1,6.7,0.1,0.1]
[null,null,null,null,null,null,null,null,null,null,"Annual",0.32500000000000001,14.7,0.28333333300000002,0.8]
[]
[null,null,null,null,null,null,null,null,null,2023,"mg/Nm3","Monthly 1/2 hourly mean","Monthly 1/2 hourly maximum","Monthly daily mean","Monthly daily maximum"]
[null,null,null,null,null,null,null,null,null,"A2","Jan",0.1,7.4,0.1,0.3]
[null,null,null,null,null,null,null,null,null,null,"Feb",0.1,4.3,0.1,0.2]
[null,null,null,null,null,null,null,null,null,null,"Mar",0.1,3.2,0.1,0.2]
[null,null,null,null,null,null,null,null,null,null,"Apr",0.1,12.1,0.1,0.3]
[null,null,null,null,null,null,null,null,null,null,"May",0.1,5.9,0.1,0.2]
[null,null,null,null,null,null,null,null,null,null,"Jun",0.1,0.8,0.1,0.2]
[null,null,null,null,null,null,null,null,null,null,"Jul",0.1,5.9,0.1,0.3]
[null,null,null,null,null,null,null,null,null,null,"Aug",0.1,3.2,0.1,0.2]
[null,null,null,null,null,null,null,null,null,null,"Sep",0.2,2.2000000000000002,0.1,0.3]
[null,null,null,null,null,null,null,null,null,null,"Oct",0,2,0,0]
[null,null,null,null,null,null,null,null,null,null,"Nov",0,1.1000000000000001,0,0.2]
[null,null,null,null,null,null,null,null,null,null,"Dec",0.1,5.2,0,0.2]
[null,null,null,null,null,null,null,null,null,null,"Annual",9.1666666999999993E-2,12.1,7.4999999999999997E-2,0.3]
[]
[null,null,null,null,null,null,null,null,null,2023,"mg/Nm3","Monthly 1/2 hourly mean","Monthly 1/2 hourly maximum","Monthly daily mean","Monthly daily maximum"]
[null,null,null,null,null,null,null,null,null,"A3","Jan"]
[null,null,null,null,null,null,null,null,null,null,"Feb"]
[null,null,null,null,null,null,null,null,null,null,"Mar"]
[null,null,null,null,null,null,null,null,null,null,"Apr"]
[null,null,null,null,null,null,null,null,null,null,"May"]
[null,null,null,null,null,null,null,null,null,null,"Jun"]
[null,null,null,null,null,null,null,null,null,null,"Jul"]
[null,null,null,null,null,null,null,null,null,null,"Aug"]
[null,null,null,null,null,null,null,null,null,null,"Sep"]
[null,null,null,null,null,null,null,null,null,null,"Oct"]
[null,null,null,null,null,null,null,null,null,null,"Nov"]
["Comments : Please include an explanation / interpretation of trends in the data reported",null,null,null,null,null,null,null,null,null,"Dec"]
[null,null,null,null,null,null,null,null,null,null,"Annual",{"$error":"#DIV/0!"},0,{"$error":"#DIV/0!"},0]
[]
[null,null,null,null,null,null,null,null,null,2023,"mg/Nm3","Monthly 1/2 hourly mean","Monthly 1/2 hourly maximum","Monthly daily mean","Monthly daily maximum"]
[null,null,null,null,null,null,null,null,null,"A4","Jan"]
[null,null,null,null,null,null,null,null,null,null,"Feb"]
[null,null,null,null,null,null,null,null,null,null,"Mar"]
[null,null,null,null,null,null,null,null,null,null,"Apr"]
[null,null,null,null,null,null,null,null,null,null,"May"]
[null,null,null,null,null,null,null,null,null,null,"Jun"]
[null,null,null,null,null,null,null,null,null,null,"Jul"]
[null,null,null,null,null,null,null,null,null,null,"Aug"]
[null,null,null,null,null,null,null,null,null,null,"Sep"]
[null,null,null,null,null,null,null,null,null,null,"Oct"]
[null,null,null,null,null,null,null,null,null,null,"Nov"]
[null,null,null,null,null,null,null,null,null,null,"Dec"]
[null,null,null,null,null,null,null,null,null,null,"Annual",{"$error":"#DIV/0!"},0,{"$error":"#DIV/0!"},0]
[]
[null,null,null,null,null,null,null,null,null,2023,"mg/Nm3","Monthly 1/2 hourly mean","Monthly 1/2 hourly maximum","Monthly daily mean","Monthly daily maximum"]
[null,null,null,null,null,null,null,null,null,"A5","Jan"]
[null,null,null,null,null,null,null,null,null,null,"Feb"]
[null,null,null,null,null,null,null,null,null,null,"Mar"]
[null,null,null,null,null,null,null,null,null,null,"Apr"]
[null,null,null,null,null,null,null,null,null,null,"May"]
[null,null,null,null,null,null,null,null,null,null,"Jun"]
[null,null,null,null,null,null,null,null,null,null,"Jul"]
[null,null,null,null,null,null,null,null,null,null,"Aug"]
[null,null,null,null,null,null,null,null,null,null,"Sep"]
[null,null,null,null,null,null,null,null,null,null,"Oct"]
[null,null,null,null,null,null,null,null,null,null,"Nov"]
[null,null,null,null,null,null,null,null,null,null,"Dec"]
[null,null,null,null,null,null,null,null,null,null,"Annual",{"$error":"#DIV/0!"},0,{"$error":"#DIV/0!"},0]

{"sheet":"Particulates","index":20,"n_rows":79,"n_cols":17,"rows_kept":79,"cut":false,"hidden":false,"merged":[[3,16,7,18],[9,16,11,18],[12,16,15,18],[66,9,78,9],[4,1,4,3],[4,4,4,6],[4,9,4,14],[6,9,18,9],[21,9,33,9],[36,9,48,9],[47,0,47,6],[48,0,51,6],[51,9,63,9],[18,4,18,6]]}
["Annual Performance Report 2023",null,null,null,"Dunbar Energy Recovery Facility (ERF)"]
[]
["Monitoring of Particulate matter emissions",null,null,"Whole Installation",null,null,"See  Notes in Cell Q3",null,null,"Monitoring of Particulate matter emissions",null,null,null,"Per Combustion Line",null,null,"Notes:"]
[null,null,null,null,null,null,null,null,null,null,null,null,null,null,null,null,"User to add logic to complete Whole installation, Table A5:G18. From the data in Per Combustion Line, Table J6:O79, subject to No. of lines installed"]
["mg/Nm3","1/2 Hourly Reference Periods",null,null,"Daily Reference Periods"]
[2023,"1/2 hourly PM ELV","Monthly 1/2 hourly mean","Highest 1/2 hourly maximum","Daily PM ELV*","Monthly daily mean","Highest daily maximum",null,null,2023,"mg/Nm3","Monthly 1/2 hourly mean","Monthly 1/2 hourly maximum","Monthly daily mean","Monthly daily maximum"]
["Jan",30,1.9,10.8,10,1.8,6.3,null,null,"A1","Jan",0.8,1.5,0.7,0.9]
["Feb",30,0.7,2.7,10,0.6,0.8,null,null,null,"Feb",0.8,1,0.7,0.8]
["Mar",30,0.5,1.7,10,0.4,0.8,null,null,null,"Mar",0.7,1.7,0.7,0.8,null,"Whole Installation table A5:G18:"]
["Apr",30,0.5,28.5,10,0.4,1.3,null,null,null,"Apr",0.8,28.5,0.7,1.3,null,"Mean: for 1/2 hourly and daily periods calculate mean of values across all operational combustion lines for the month"]
["May",30,0.4,1.7,10,0.4,0.9,null,null,null,"May",0.7,1.7,0.7,0.9]
["Jun",30,0.4,1.3,10,0.4,0.8,null,null,null,"Jun",0.7,1.3,0.7,0.8]
["Jul",30,0.5,1.1000000000000001,10,0.5,0.8,null,null,null,"Jul",0.8,1.1000000000000001,0.8,0.8,null,"Maximum: for 1/2 hourly and daily periods use the highest value across all operational combustion lines for the month"]
["Aug",30,0.5,1.8,10,0.5,1,null,null,null,"Aug",0.8,1.8,0.7,1]
["Sep",30,0.5,1.7,10,0.5,0.8,null,null,null,"Sep",0.7,1.7,0.7,0.8]
["Oct",30,0.5,2.2000000000000002,10,0.5,1,null,null,null,"Oct",0.7,2.2000000000000002,0.7,1]
["Nov",30,0.6,2,10,0.6,1,null,null,null,"Nov",0.7,1.1000000000000001,0.7,0.8]
["Dec",30,1,16.8,10,0.9,3.8,null,null,null,"Dec",0.8,2,0.7,1.1000000000000001]
[null,null,null,null,"* ELV reduced to 5 mg/Nm3 on 3 December 2023",null,null,null,null,null,"Annual",0.75,28.5,0.70833333300000001,1.3]
[]
[null,null,null,null,null,null,null,null,null,2023,"mg/Nm3","Monthly 1/2 hourly mean","Monthly 1/2 hourly maximum","Monthly daily mean","Monthly daily maximum"]
[null,null,null,null,null,null,null,null,null,"A2","Jan",3,10.8,2.9,6.3]
[null,null,null,null,null,null,null,null,null,null,"Feb",0.5,2.7,0.5,0.8]
[null,null,null,null,null,null,null,null,null,null,"Mar",0.2,1.4,0.1,0.4]
[null,null,null,null,null,null,null,null,null,null,"Apr",0.1,1.3,0.1,0.2]
[null,null,null,null,null,null,null,null,null,null,"May",0.1,1,0.1,0.1]
[null,null,null,null,null,null,null,null,null,null,"Jun",0.1,0.9,0.1,0.4]
[null,null,null,null,null,null,null,null,null,null,"Jul",0.1,0.8,0.1,0.2]
[null,null,null,null,null,null,null,null,null,null,"Aug",0.2,1.4,0.2,0.3]
[null,null,null,null,null,null,null,null,null,null,"Sep",0.2,1.7,0.2,0.6]
[null,null,null,null,null,null,null,null,null,null,"Oct",0.2,0.8,0.2,0.3]
[null,null,null,null,null,null,null,null,null,null,"Nov",0.4,2,0.4,1]
[null,null,null,null,null,null,null,null,null,null,"Dec",1.2,16.8,1.1000000000000001,3.8]
[null,null,null,null,null,null,null,null,null,null,"Annual",0.52500000000000002,16.8,{"$f":"SUM(N21:N33)/12","v":0.50000000000000011},6.3]
[]
[null,null,null,null,null,null,null,null,null,2023,"mg/Nm3","Monthly 1/2 hourly mean","Monthly 1/2 hourly maximum","Monthly daily mean","Monthly daily maximum"]
[null,null,null,null,null,null,null,null,null,"A3","Jan"]
[null,null,null,null,null,null,null,null,null,null,"Feb"]
[null,null,null,null,null,null,null,null,null,null,"Mar"]
[null,null,null,null,null,null,null,null,null,null,"Apr"]
[null,null,null,null,null,null,null,null,null,null,"May"]
[null,null,null,null,null,null,null,null,null,null,"Jun"]
[null,null,null,null,null,null,null,null,null,null,"Jul"]
[null,null,null,null,null,null,null,null,null,null,"Aug"]
[null,null,null,null,null,null,null,null,null,null,"Sep"]
[null,null,null,null,null,null,null,null,null,null,"Oct"]
[null,null,null,null,null,null,null,null,null,null,"Nov"]
["Comments : Please include an explanation / interpretation of trends in the data reported",null,null,null,null,null,null,null,null,null,"Dec"]
[null,null,null,null,null,null,null,null,null,null,"Annual",{"$error":"#DIV/0!"},0,{"$error":"#DIV/0!"},0]
[]
[null,null,null,null,null,null,null,null,null,2023,"mg/Nm3","Monthly 1/2 hourly mean","Monthly 1/2 hourly maximum","Monthly daily mean","Monthly daily maximum"]
[null,null,null,null,null,null,null,null,null,"A4","Jan"]
[null,null,null,null,null,null,null,null,null,null,"Feb"]
[null,null,null,null,null,null,null,null,null,null,"Mar"]
[null,null,null,null,null,null,null,null,null,null,"Apr"]
[null,null,null,null,null,null,null,null,null,null,"May"]
[null,null,null,null,null,null,null,null,null,null,"Jun"]
[null,null,null,null,null,null,null,null,null,null,"Jul"]
[null,null,null,null,null,null,null,null,null,null,"Aug"]
[null,null,null,null,null,null,null,null,null,null,"Sep"]
[null,null,null,null,null,null,null,null,null,null,"Oct"]
[null,null,null,null,null,null,null,null,null,null,"Nov"]
[null,null,null,null,null,null,null,null,null,null,"Dec"]
[null,null,null,null,null,null,null,null,null,null,"Annual",{"$error":"#DIV/0!"},0,{"$error":"#DIV/0!"},0]
[]
[null,null,null,null,null,null,null,null,null,2023,"mg/Nm3","Monthly 1/2 hourly mean","Monthly 1/2 hourly maximum","Monthly daily mean","Monthly daily maximum"]
[null,null,null,null,null,null,null,null,null,"A5","Jan"]
[null,null,null,null,null,null,null,null,null,null,"Feb"]
[null,null,null,null,null,null,null,null,null,null,"Mar"]
[null,null,null,null,null,null,null,null,null,null,"Apr"]
[null,null,null,null,null,null,null,null,null,null,"May"]
[null,null,null,null,null,null,null,null,null,null,"Jun"]
[null,null,null,null,null,null,null,null,null,null,"Jul"]
[null,null,null,null,null,null,null,null,null,null,"Aug"]
[null,null,null,null,null,null,null,null,null,null,"Sep"]
[null,null,null,null,null,null,null,null,null,null,"Oct"]
[null,null,null,null,null,null,null,null,null,null,"Nov"]
[null,null,null,null,null,null,null,null,null,null,"Dec"]
[null,null,null,null,null,null,null,null,null,null,"Annual",{"$error":"#DIV/0!"},0,{"$error":"#DIV/0!"},0]

{"sheet":"CO 95% 10 min","index":21,"n_rows":52,"n_cols":19,"rows_kept":52,"cut":false,"hidden":false,"merged":[[24,10,36,10],[50,0,50,7],[51,0,54,7],[4,0,5,7],[6,18,10,20],[12,18,14,20],[15,18,18,20],[7,1,7,4],[7,5,7,7],[7,10,7,16],[9,10,21,10]]}
["Annual Performance Report 2023",null,null,null,"Dunbar Energy Recovery Facility (ERF)"]
[]
["Monitoring of Carbon Monoxide (10-minute avg)",null,null,null,"Whole Installation",null,null,"See  Notes in Cell S3",null,"Monitoring of Carbon Monoxide (10-minute avg)",null,null,null,null,"Per Combustion Line",null,"Notes:",null,"Notes:"]
[]
["Please complete this tab for your plant if you have 10-minute average CO ELVs; otherwise, leave it blank and complete the CO 0.5 hourly tab"]
[]
[null,null,null,null,null,null,null,null,null,null,null,null,null,null,null,null,null,null,"User to add logic to complete Whole installation, Table A5:H18. From the data in Per Combustion Line, Table K6:Q79, subject to No. of lines installed"]
["mg/Nm3","10-minute Reference Periods",null,null,null,"Daily Reference Periods"]
[2023,"95%ile 10-min avg CO ELV","95%ile 10-min avg maximum","Monthly CO 10-min avg mean","10-min avg maximum","Daily CO ELV","Monthly daily mean","Highest daily maximum",null,null,2023,"mg/Nm3","95%ile 10-min avg maximum","Monthly CO 10-min avg mean","10-min avg maximum","Monthly daily mean","Monthly daily maximum"]
["Jan",150,7,1.3,329.6,50,1.3,3.7,null,null,"A1","Jan",5.9,1.5,234.6,1.5,3.7]
["Feb",150,9,1.5,354.1,50,1.4,4.7,null,null,null,"Feb",8.6999999999999993,1.6,354.1,1.4,4.7]
["Mar",150,12.3,1.5,288,50,1.3,3.1,null,null,null,"Mar",6.2,1.6,251.3,1.6,3,null,"Whole Installation table A5:H18:"]
["Apr",150,45.4,2.6,381.1,50,2.5,14.5,null,null,null,"Apr",11.8,1.9,264.5,1.8,3.8,null,"Mean: for 10-min and daily periods use average of all operational combustion lines."]
["May",150,7.8,1,304.10000000000002,50,0.9,4.0999999999999996,null,null,null,"May",7.4,1.2,299.7,1.1000000000000001,4.0999999999999996]
["Jun",150,29.7,1.4,204.1,50,1.8,5.6,null,null,null,"Jun",22.8,1.8,187.1,1.7,4.8]
["Jul",150,39.799999999999997,2.7,370.5,50,2.6,9.1,null,null,null,"Jul",8.1,1.6,315.60000000000002,1.5,5.7,null,"Maximum: for 10-min and daily periods use the highest of all operational combustion lines in any month."]
["Aug",150,43.5,3,273.39999999999998,50,2.9,9.3000000000000007,null,null,null,"Aug",11,1.7,224.5,1.7,3.8]
["Sep",150,63.2,5.7,269.2,50,5.7,17.2,null,null,null,"Sep",23.3,2.5,266.10000000000002,2.4,7.8]
["Oct",150,55.8,7.5,366.8,50,3.7,16.100000000000001,null,null,null,"Oct",37.799999999999997,2.8,366.8,2.6,7.3]
["Nov",150,44.3,3.8,207.3,50,3.8,10,null,null,null,"Nov",44.3,3.8,207.3,3.7,10]
["Dec",150,40.4,3.7,295.60000000000002,50,3.6,9.5,null,null,null,"Dec",33,3.8,225.2,3.7,9.5]
[null,null,null,null,null,null,null,null,null,null,null,"Annual",18.358333330000001,2.15,366.8,2.0583333330000002,10]
[]
[null,null,null,null,null,null,null,null,null,null,2023,"mg/Nm3","95%ile 10-min avg maximum","Monthly CO 10-min avg mean","10-min avg maximum","Monthly daily mean","Monthly daily maximum"]
[null,null,null,null,null,null,null,null,null,null,"A2","Jan",7,1.1000000000000001,329.6,1.1000000000000001,3.2]
[null,null,null,null,null,null,null,null,null,null,null,"Feb",9,1.3,184.8,1.3,3.2]
[null,null,null,null,null,null,null,null,null,null,null,"Mar",12.3,1.1000000000000001,288,1,3.1]
[null,null,null,null,null,null,null,null,null,null,null,"Apr",45.4,3.2,381.1,3.2,14.5]
[null,null,null,null,null,null,null,null,null,null,null,"May",7.8,0.7,304.10000000000002,0.7,2.2999999999999998]
[null,null,null,null,null,null,null,null,null,null,null,"Jun",29.7,1.9,204.1,1.8,5.6]
[null,null,null,null,null,null,null,null,null,null,null,"Jul",39.799999999999997,3.7,370.5,3.6,9.1]
[null,null,null,null,null,null,null,null,null,null,null,"Aug",43.5,4.2,273.39999999999998,4.0999999999999996,9.3000000000000007]
[null,null,null,null,null,null,null,null,null,null,null,"Sep",63.2,8.9,269.2,8.9,17.2]
[null,null,null,null,null,null,null,null,null,null,null,"Oct",55.8,4.7,147.4,4.7,16.100000000000001]
[null,null,null,null,null,null,null,null,null,null,null,"Nov",40.700000000000003,3.8,185.5,3.8,8.6]
[null,null,null,null,null,null,null,null,null,null,null,"Dec",40.4,3.5,295.60000000000002,3.5,8.4]
[null,null,null,null,null,null,null,null,null,null,null,"Annual",32.883333329999999,3.1749999999999998,381.1,3.141666667,17.2]
[]
[]
[]
[]
[]
[]
[]
[]
[]
[]
[]
[]
[]
["Comments : Please include an explanation / interpretation of trends in the data reported"]
["Environment Agency explanatory note: The 10-minute average ELV is based on the “95th percentile”. In this case this means that 95% of the 10 minute averages in the relevant 24-hour period (i.e. 137) must be below 150 mg/Nm3, and 5% (i.e. 7) are allowed to be any value above 150 mg/Nm3. Whilst we expect operators to minimise CO emissions at all times, it is perfectly acceptable for the value of the maximum 10-minute average to be above 150 mg/Nm3, provided the 95th percentile ELV has been met for that period. "]

{"sheet":"NH3","index":22,"n_rows":48,"n_cols":17,"rows_kept":48,"cut":false,"hidden":false,"merged":[[21,9,33,9],[47,0,47,6],[48,0,51,6],[18,4,18,6],[3,16,7,18],[9,16,11,18],[12,16,15,18],[4,1,4,3],[4,4,4,6],[4,9,4,14],[6,9,18,9]]}
["Annual Performance Report 2023",null,null,null,"Dunbar Energy Recovery Facility (ERF)"]
[]
["Monitoring of NH3 emissions",null,null,"Whole Installation",null,null,"See  Notes in Cell Q3",null,null,"Monitoring of NH3 emissions",null,null,null,"Per Combustion Line",null,null,"Notes:"]
[null,null,null,null,null,null,null,null,null,null,null,null,null,null,null,null,"User to add logic to complete Whole installation, Table A5:G18. From the data in Per Combustion Line, Table J6:O79, subject to No. of lines installed"]
["mg/Nm3","1/2 Hourly Reference Periods",null,null,"Daily Reference Periods"]
[2023,"1/2 hourly NH3 ELV","Monthly 1/2 hourly mean","Highest 1/2 hourly maximum","Daily NH3 ELV*","Monthly daily mean","Highest daily maximum",null,null,2023,"mg/Nm3","Monthly 1/2 hourly mean","Monthly 1/2 hourly maximum","Monthly daily mean","Monthly daily maximum"]
["Jan",60,{"$f":"AVERAGE(L7,L22)","v":0.05},{"$f":"MAX(M7,M22)","v":1.5},10,{"$f":"AVERAGE(N7,N22)","v":0.1},{"$f":"MAX(O7,O22)","v":1.1000000000000001},null,null,"A1","Jan",0,0.2,0.1,1.1000000000000001]
["Feb",60,{"$f":"AVERAGE(L8,L23)","v":0.05},{"$f":"MAX(M8,M23)","v":0.7},10,{"$f":"AVERAGE(N8,N23)","v":0.1},{"$f":"MAX(O8,O23)","v":0.7},null,null,null,"Feb",0,0.2,0.1,0.7]
["Mar",60,0.1,0.4,10,0.1,0.7,null,null,null,"Mar",0.1,0.3,0.1,0.7,null,"Whole Installation table A5:G18:"]
["Apr",60,0.15000000000000002,1.4,10,0.15000000000000002,0.9,null,null,null,"Apr",0.2,0.5,0.2,0.9,null,"Mean: for 1/2 hourly and daily periods calculate mean of values across all operational combustion lines for the month"]
["May",60,0,0.8,10,0.05,0.4,null,null,null,"May",0,0.2,0.1,0.4]
["Jun",60,0.05,1,10,0.05,3.6,null,null,null,"Jun",0.1,0.3,0.1,3.6]
["Jul",60,0.2,1.7,10,0.25,1.2,null,null,null,"Jul",0.1,0.4,0.2,1.2,null,"Maximum: for 1/2 hourly and daily periods use the highest value across all operational combustion lines for the month"]
["Aug",60,0.55000000000000004,4.3,10,0.55000000000000004,2.2000000000000002,null,null,null,"Aug",0.1,0.4,0.1,0.9]
["Sep",60,0.75,3.2,10,0.75,2.2000000000000002,null,null,null,"Sep",0.2,0.6,0.2,2]
["Oct",60,0.65,4.7,10,0.65,2.8,null,null,null,"Oct",0.2,0.4,0.2,1.2]
["Nov",60,0.85,4.8,10,0.85,3,null,null,null,"Nov",0.2,0.6,0.2,1.1000000000000001]
["Dec",60,1.1500000000000001,5.9,10,1.2,3.4,null,null,null,"Dec",0.2,0.8,0.3,1.6]
[null,null,null,null,"* ELV reduced to 8 mg/Nm3 on 3 December 2023",null,null,null,null,null,"Annual",0.12,0.8,0.16,3.6]
[]
[null,null,null,null,null,null,null,null,null,2023,"mg/Nm3","Monthly 1/2 hourly mean","Monthly 1/2 hourly maximum","Monthly daily mean","Monthly daily maximum"]
[null,null,null,null,null,null,null,null,null,"A2","Jan",0.1,1.5,0.1,0.2]
[null,null,null,null,null,null,null,null,null,null,"Feb",0.1,0.7,0.1,0.2]
[null,null,null,null,null,null,null,null,null,null,"Mar",0.1,0.4,0.1,0.1]
[null,null,null,null,null,null,null,null,null,null,"Apr",0.1,1.4,0.1,0.1]
[null,null,null,null,null,null,null,null,null,null,"May",0,0.8,0,0.1]
[null,null,null,null,null,null,null,null,null,null,"Jun",0,1,0,0]
[null,null,null,null,null,null,null,null,null,null,"Jul",0.3,1.7,0.3,0.6]
[null,null,null,null,null,null,null,null,null,null,"Aug",1,4.3,1,2.2000000000000002]
[null,null,null,null,null,null,null,null,null,null,"Sep",1.3,3.2,1.3,2.2000000000000002]
[null,null,null,null,null,null,null,null,null,null,"Oct",1.1000000000000001,4.7,1.1000000000000001,2.8]
[null,null,null,null,null,null,null,null,null,null,"Nov",1.5,4.8,1.5,3]
[null,null,null,null,null,null,null,null,null,null,"Dec",2.1,5.9,2.1,3.4]
[null,null,null,null,null,null,null,null,null,null,"Annual",0.64,5.9,0.64,3.4]
[]
[]
[]
[]
[]
[]
[]
[]
[]
[]
[]
[]
[]
["Comments : Please include an explanation / interpretation of trends in the data reported"]